Cogmind - Beta 16.1 --- EXPLORER MODE // 2026.06.24 @ 11:25:52 // Winter2019/RPGLIKE Player: H3-MLN Result: Escaped! Performance ------------- Evolutions (9) 4500 Regions Visited (23) 4600 Robots Destroyed (253) 1265 Value Destroyed (12297) 12297 Prototype IDs (224) 4480 Alien Tech Used (4) 800 Bonus (33553) 33553 TOTAL SCORE: 61495 Bonus ------- High Alert Combat Kills 96 Follower Combat Kills 9624 Hunted by Unchained 500 Destroyed Unchained 1000 Network Hubs Disabled 800 Delivered SUBCON Basin 2000 Registered with UFD 300 Met Optimus in HQ 500 Met Imprinter 300 Destroyed Z-Imprinter 1000 Built Enhanced Grunts 300 A7 Reached Mainframe 300 Met R17 at Cetus 500 Hacked Protovariant 500 Met R17 at Research 2000 Scanned by Researcher 500 Destroyed Superfortress 15000 Met Optimus at Protoforge 1000 Win 3000 Friendly Fire -5667 Cogmind --------- Core Integrity 635/1000 Matter 350/350 Energy 850/870 System Corruption 0% Temperature Cool (35) Movement Flying (10) Location To Epsilon Eridani Parts ------- > --- POWER (2) -------- Experimental Antimatter Reactor Concept Zero-point Core > --- PROPULSION (8) --- Experimental Biomechanical Wings Experimental Surge Thruster Experimental Surge Thruster Experimental Surge Thruster Experimental Surge Thruster Experimental Surge Thruster Concept Fieldthrust Drive Concept Fieldthrust Drive > --- UTILITY (9) ------ Experimental Signal Interpreter Experimental Melee Analysis Suite Concept Melee Reflex Suite Concept Weapon Articulator Concept Core Analysis Suite Femtoactuators Experimental Actuator Array Concept Cloak Mesh Improved Corruption Screen > --- WEAPON (7) ------- Advanced Datajack Vibroblade Experimental Jetlance Experimental Jetlance Experimental Jetlance Experimental Jetlance > --- INVENTORY (7) ---- Experimental Reaction Control System Concept Phase Shift Module Experimental EM Shield Experimental Shield Generator Concept Disintegration Ray (37) Concept Plasma Driver Hypervelocity Multirail Peak State ------------ > --- POWER ------------ Experimental Antimatter Reactor Concept Zero-point Core > --- PROPULSION ------- Experimental Biomechanical Wings Experimental Surge Thruster Experimental Surge Thruster Experimental Surge Thruster Experimental Surge Thruster Experimental Surge Thruster Concept Fieldthrust Drive Concept Fieldthrust Drive > --- UTILITY ---------- Advanced Gravity Neutralizer Experimental Signal Interpreter Long-range Terrain Scanner Concept Weapon Articulator Concept Core Analysis Suite Femtoactuators Concept Cloak Mesh Concept Cloak Mesh Improved Corruption Screen > --- WEAPON ----------- Concept Plasma Driver Core Stripper Experimental Jetlance Experimental Jetlance Experimental Jetlance Experimental Jetlance > --- INVENTORY -------- Concept Melee Reflex Suite Experimental Reaction Control System Concept Phase Shift Module Experimental EM Shield Experimental Shield Generator Concept Disintegration Ray Hypervelocity Multirail [Rating: 285] Favorites ----------- Power Ion Engine Engine Ion Engine Power Core Light Neutrino Core Reactor Experimental Antimatter Reactor Propulsion Experimental Surge Thruster Treads Light Treads Leg Cargo Legs Wheel Wheel Flight Unit Experimental Surge Thruster Utility A0-MCA's Component Scanner Device Tactical Coordination Suite Storage Matter Compressor Processor A0-MCA's Component Scanner Hackware Authchip [Device] Protection Enhanced Scrap Shield Weapon Experimental Jetlance Energy Gun Concept Disintegration Ray Energy Cannon Phase Cannon Ballistic Gun Heavy Assault Rifle Ballistic Cannon Light Cannon Special Weapon Multitool Impact Weapon Core Stripper Slashing Weapon Ripper Piercing Weapon Experimental Jetlance Special Melee Weapon 1B-0RG's Assimilator Build | -11 -10 -10 -10 -9 -9 -6 -6 -6 -6 -6 -5 -5 -4 -4 -4 -4 -4 -3 -3 -3 -2 -2 -1 ------- Run | Yrd Mat Min Sub Rec Scr Fac Low Low Zio Dee Pro Fac Fac Ext Cet Arc Hub Res Qua Frg Res Tes Acc Slots Evolved 22 | 3 . 2 3 1 1 4 . . . . . 2 2 . . . . . 2 1 . 1 . Power 1 | . . . . . . . . . . . . . . . . . . . 1 . . . . Propulsion 7 | 1 . 1 1 . . . . . . . . 2 2 . . . . . . . . . . Utility 8 | 1 . . . 1 1 3 . . . . . . . . . . . . . 1 . 1 . Weapon 6 | 1 . 1 2 . . 1 . . . . . . . . . . . . 1 . . . . Parts Attached 136 | 9 6 3 7 3 3 8 5 . . 3 . 8 6 5 3 . . 8 6 43 . 2 8 Power 13 | 2 . . . . . 1 . . . 1 . . 1 1 . . . . 1 6 . . . Engine 4 | 2 . . . . . 1 . . . . . . 1 . . . . . . . . . . Core 3 | . . . . . . . . . . . . . . 1 . . . . . 2 . . . Reactor 6 | . . . . . . . . . . 1 . . . . . . . . 1 4 . . . Propulsion 39 | 2 2 . 2 1 1 . 2 . . . . 6 3 3 . . . 4 2 11 . . . Treads 2 | 2 . . . . . . . . . . . . . . . . . . . . . . . Leg 1 | . . . 1 . . . . . . . . . . . . . . . . . . . . Wheel 7 | . 2 . 1 1 1 . 2 . . . . . . . . . . . . . . . . Hover . | . . . . . . . . . . . . . . . . . . . . . . . . Flight 29 | . . . . . . . . . . . . 6 3 3 . . . 4 2 11 . . . Utility 51 | 3 1 1 2 2 2 6 3 . . 1 . 1 1 . 3 . . 4 2 15 . . 4 Device 25 | . . 1 . . 1 2 1 . . 1 . 1 . . 1 . . 2 2 11 . . 2 Storage 5 | . . . . . . 2 1 . . . . . . . . . . 1 . 1 . . . Processor 12 | 1 . . 1 1 1 1 . . . . . . 1 . . . . 1 . 3 . . 2 Hackware 3 | . . . . 1 . 1 . . . . . . . . 1 . . . . . . . . Protection 6 | 2 1 . 1 . . . 1 . . . . . . . 1 . . . . . . . . Artifact . | . . . . . . . . . . . . . . . . . . . . . . . . Weapon 33 | 2 3 2 3 . . 1 . . . 1 . 1 1 1 . . . . 1 11 . 2 4 Energy Gun 3 | . . . . . . . . . . . . . . . . . . . . 2 . 1 . Energy Cannon 2 | . . . . . . 1 . . . . . . . . . . . . . . . . 1 Ballistic Gun 7 | 2 3 1 . . . . . . . . . . . . . . . . . . . 1 . Ballistic Cannon 1 | . . 1 . . . . . . . . . . . . . . . . . . . . . Launcher . | . . . . . . . . . . . . . . . . . . . . . . . . Special Weapon 4 | . . . 1 . . . . . . 1 . 1 . . . . . . . 1 . . . Impact Weapon 1 | . . . . . . . . . . . . . . . . . . . 1 . . . . Slashing Weapon 6 | . . . 1 . . . . . . . . . . . . . . . . 4 . . 1 Piercing Weapon 5 | . . . . . . . . . . . . . . . . . . . . 4 . . 1 Special Melee Weapon 4 | . . . 1 . . . . . . . . . 1 1 . . . . . . . . 1 Unidentified Prototypes 6 | . . . 1 . . . . . . . . . . . . . . . 1 1 . 2 1 Parts Lost 1 | . . . . . . . . . . . . . . . 1 . . . . . . . . Power . | . . . . . . . . . . . . . . . . . . . . . . . . Propulsion . | . . . . . . . . . . . . . . . . . . . . . . . . Utility 1 | . . . . . . . . . . . . . . . 1 . . . . . . . . Weapon . | . . . . . . . . . . . . . . . . . . . . . . . . Highest Loss Streak 1 | . . . . . . . . . . . . . . . 1 . . . . . . . . To Critical Strikes . | . . . . . . . . . . . . . . . . . . . . . . . . Average Backups 4 | 1 4 3 3 2 3 4 5 5 5 4 4 4 4 5 4 5 5 5 6 6 7 6 6 Power . | . . . . . . . . . . . . . . . . . . . . . . . . Propulsion . | . 1 . . . . . . . . . . . . . . . . . . . . . . Utility 3 | 1 1 2 . . 1 1 3 3 2 3 3 3 4 4 3 4 4 4 3 4 6 5 4 Weapon . | . . . . . . . . . . . . . . . . . . . . . 1 1 2 Tool/Special . | . . . . . . . . . . . . . . . . . . . . . . . . Unused Backups 22 | . . . 1 1 2 1 . . . 1 . 1 1 . 1 . . 1 3 8 . . 1 Power 1 | . . . . . . . . . . . . . . . . . . . . 1 . . . Propulsion 1 | . . . . . . . . . . . . 1 . . . . . . . . . . . Utility 13 | . . . 1 . 1 . . . . . . . . . 1 . . 1 1 7 . . 1 Weapon 1 | . . . . . . . . . . . . . . . . . . . 1 . . . . Tool/Special 6 | . . . . 1 1 1 . . . 1 . . 1 . . . . . 1 . . . . Average Slot Usage (%) 76 | . 100 96 56 54 59 70 72 72 72 72 72 74 77 74 75 80 80 76 73 81 95 96 98 Engine 4 | . 14 11 6 5 5 4 8 9 9 5 4 4 7 4 4 4 4 4 3 . . . . Core 1 | . . . . . . . . . . . . . . 3 4 4 4 4 3 3 4 3 3 Reactor 1 | . . . . . . . . . . 2 4 4 . . . . . . . 4 4 3 3 Treads 1 | . 23 11 . . . . . . . . . . . . . . . . . . . . . Leg 2 | . . . 6 5 5 4 4 4 4 4 4 2 . . . . . . . . . . . Wheel 6 | . 4 21 13 10 11 13 12 13 13 13 13 9 . . . . . . . . . . . Flight 13 | . . . . . . . . . . . . 10 27 26 28 28 28 24 24 28 31 31 30 Device 9 | . . 2 6 5 5 10 4 4 4 4 7 8 8 8 6 8 7 11 13 16 20 20 15 Processor 13 | . 14 11 6 5 12 19 17 18 18 18 18 16 16 16 16 16 16 16 14 14 12 11 18 Protection 3 | . 14 8 6 5 3 . 3 4 4 4 4 3 4 4 4 4 4 4 2 . . . . Ballistic Gun 2 | . 28 22 . . . . . . . . . . . . . . . . . . . . . Slashing Weapon 2 | . . . 1 5 5 4 4 4 4 4 4 4 4 4 4 4 4 4 2 2 . . 2 Piercing Weapon 2 | . . . . . . . . . . . . . . . . . . . . 7 16 15 15 Special Melee Weapon 4 | . . . 6 5 5 4 4 4 4 4 4 4 6 8 6 4 4 6 5 2 . . 2 Peak Build Rating 285 | 7 10 12 109 116 127 151 175 172 172 183 183 191 180 197 197 194 198 215 241 284 280 284 285 Average Rating 168 | 5 9 11 92 112 120 133 170 172 171 178 183 184 173 187 193 193 193 208 224 240 276 278 271 On Entrance 159 | . 7 10 12 109 116 127 151 172 172 172 183 183 169 180 197 193 194 198 215 229 280 278 283 Avg Prop Armor Cover (%) 5 | . 8 6 5 3 7 10 4 4 4 4 4 4 . . . 10 . . . 3 1 . . Naked Turns . | . . . . . . . . . . . . . . . . . . . . . . . . Heaviest Build 115 | 12 18 21 82 82 82 95 112 107 107 112 112 112 108 107 103 93 93 94 115 101 77 79 85 Greatest Support 109 | 40 40 20 55 55 42 42 56 56 56 56 56 66 71 76 96 96 99 96 103 109 89 89 89 Greatest Overweight (x) 8 | 1 1 1 8 3 3 3 3 1 1 1 1 1 1 1 1 4 . . 1 4 . . . Average Overweight (x) . | . . . 2 1 2 1 1 1 1 1 1 1 1 1 . 1 . . . . . . . Largest Inventory Capacity 7 | 5 5 5 5 5 5 5 6 6 6 6 6 6 6 6 6 6 6 7 7 7 7 7 7 Average Capacity 5 | 5 5 5 5 5 5 5 5 6 6 6 6 6 6 6 6 6 6 6 7 7 7 7 7 Most Carried 7 | 5 5 5 5 5 5 5 6 6 6 6 6 6 6 6 6 6 6 7 7 7 7 7 7 Average Carried 5 | 2 4 4 4 4 4 4 5 6 5 5 5 5 5 6 5 6 6 5 6 6 7 6 6 Final Capacity 7 | 5 5 5 5 5 5 5 6 6 6 6 6 6 6 6 6 6 6 7 7 7 7 7 7 Final Carried 7 | 5 5 5 5 3 5 5 6 6 6 6 6 6 6 6 6 6 6 7 7 7 7 7 7 Class Distribution -------------------- 29% | Hacker-Mutant 28% | Hacker-Assassin 15% | Hacker-Scout 15% | Hacker-Ninja 3% | Hacker-Gunner 3% | Wizard-Scout Dominant Class ---------------- Hacker-Mutant | -10/Materials Hacker-Gunner | -10/Mines Hacker-Mutant | -10/Subcaves Hacker-Mutant | -9/Recycling Hacker-Mutant | -9/Scraptown Hacker-Assassin | -6/Factory Hacker-Assassin | -6/Lower Caves Hacker-Assassin | -6/Lower Caves Hacker-Assassin | -6/Zion Hacker-Assassin | -6/Deep Caves Hacker-Assassin | -5/Proximity Caves Hacker-Assassin | -5/Factory Hacker-Assassin | -4/Factory Hacker-Assassin | -4/Extension Hacker-Assassin | -4/Cetus Wizard-Assassin | -4/Archives Wizard-Scout | -4/Hub_04(d) Hacker-Scout | -3/Research Hacker-Scout | -3/Quarantine Hacker-Scout | -3/Protoforge Hacker-Ninja | -2/Research Hacker-Ninja | -2/Testing Hacker-Ninja | -1/Access Resources | -11 -10 -10 -10 -9 -9 -6 -6 -6 -6 -6 -5 -5 -4 -4 -4 -4 -4 -3 -3 -3 -2 -2 -1 ----------- Run | Yrd Mat Min Sub Rec Scr Fac Low Low Zio Dee Pro Fac Fac Ext Cet Arc Hub Res Qua Frg Res Tes Acc Matter Collected 29025 | 297 780 466 1037 236 37 2736 1303 144 24 56 840 677 762 796 1717 1001 823 5452 5559 3862 120 110 190 Remotely . | . . . . . . . . . . . . . . . . . . . . . . . . Salvage Created 15621 | 111 1084 512 47 319 . 515 220 . . 202 . . 112 210 126 295 233 2746 1824 2545 615 2244 1661 Parts 567 | 6 69 26 . 7 . 14 7 . 2 3 . 2 9 8 10 25 12 59 40 64 28 110 66 Haulers Intercepted 6 | . 2 . . . . 1 . . . . . . . . . . . 1 . . 1 . 1 Recyclers Shooed 9 | . 1 1 . . . 3 . . . . . . . . . . . 3 1 . . . . Parts Field Recycled 22 | . . . . . . . 22 . . . . . . . . . . . . . . . . Retrieved Matter 396 | . . . . . . . 396 . . . . . . . . . . . . . . . . Parts Self-Destructed . | . . . . . . . . . . . . . . . . . . . . . . . . Prevented . | . . . . . . . . . . . . . . . . . . . . . . . . Parts Restored 7 | . . . . . . . . . . . . . . . . . . . . 7 . . . Faulty 7 | . . . . . . . . . . . . . . . . . . . . 7 . . . Kills | -11 -10 -10 -10 -9 -9 -6 -6 -6 -6 -6 -5 -5 -4 -4 -4 -4 -4 -3 -3 -3 -2 -2 -1 ------- Run | Yrd Mat Min Sub Rec Scr Fac Low Low Zio Dee Pro Fac Fac Ext Cet Arc Hub Res Qua Frg Res Tes Acc Combat Hostiles Destroyed 125 | . 20 9 1 1 . 1 2 . 1 2 . 2 3 . . . 1 1 2 35 5 18 21 Melee 62 | . . . 1 1 . 1 . . . . . 1 3 . . . . 1 . 13 4 18 19 Guns 29 | . 20 9 . . . . . . . . . . . . . . . . . . . . . Cannons 6 | . . . . . . . 2 . 1 2 . 1 . . . . . . . . . . . Classes Destroyed 30 | 2 5 1 1 1 . 1 2 . 1 1 . . 1 . . . 1 . 3 8 . 1 1 Worker 16 | . 1 4 . . . . . . . . . . . . . . 1 3 6 . 1 . . Builder 12 | . 2 2 . . . . . . . . . . . . . . . 1 7 . . . . Tunneler 2 | 2 . . . . . . . . . . . . . . . . . . . . . . . Hauler 11 | . 2 . . . . 1 . . . . . . . . . . . 5 1 . 1 . 1 Recycler 45 | 1 2 3 . 4 . 3 . . . . . . . 2 . . 1 17 10 . . . 2 Operator 15 | . . . . . . . . . . . . . 1 . . 9 1 . . 1 . 2 1 Drone 9 | . . . . . . . . . . . . . . . . . . . . 2 . . 7 Watcher 15 | . 2 . . . . . . . . . . . . . . . 1 1 1 3 2 4 1 Swarmer 15 | . . 7 . . . . . . . . . 1 3 . . . . . . . . 4 . Saboteur 1 | . . . . . . 1 . . . . . . . . . . . . . . . . . Grunt 33 | . 20 2 . . . . 1 . . . . 1 . . . . . 1 . . . 4 4 Brawler 1 | . . . . . . . 1 . . . . . . . . . . . . . . . . Protector 1 | . . . . . . . . . . . . . . . . . 1 . . . . . . Researcher 17 | . . . . . . . . . . . . . . . . . . . 4 4 . 9 . Sentry 12 | . . . . 1 . . . . . . . . . . . . . . . 10 1 . . Hunter 2 | . . . . . . . . . . . . . . . . . . . . . . 2 . Programmer 13 | . . . . . . . . . . . . . . . . . . . . 1 3 7 2 Q-Series 8 | . . . . . . . . . . . . . . . . . . . 1 . 1 . 6 Behemoth 2 | . . . . . . . . . . . . . . . . . . . . . . . 2 Hotshot 3 | . . . . . . . . . . . . . . . . . . . . 3 . . . Decapitator 4 | . . . . . . . . . . . . . . . . . . . . 4 . . . Immortal 7 | . . . . . . . . . . . . . . . . . . . . 7 . . . Executioner 2 | . . . . . . . . . . . . . . . . . . . . 2 . . . Alpha 7 5 | . . . . . . . . . . . . . . . . . . . . 4 . 1 . Fortress 1 | . . . . . . . . . . . . . . . . . . . 1 . . . . V-Series 2 | . . . . . . . . . . . . . . . . . . . . 2 . . . Subdweller 1 | . . . 1 . . . . . . . . . . . . . . . . . . . . Scrapoid 1 | . . . . . . . . . . . . . . . . . . . . 1 . . . Z-Light 2 | . . . . . . . . . . 2 . . . . . . . . . . . . . Samaritan 1 | . . . . . . . 1 . . . . . . . . . . . . . . . . Mutant 1 | . . . . . . . . . 1 . . . . . . . . . . . . . . Best Kill Streak 17 | 1 4 3 1 3 . 1 2 . 1 2 . 1 3 1 . 9 2 4 3 6 3 17 5 Combat Bots Only 10 | . 3 2 1 1 . 1 2 . 1 2 . 1 3 . . . 1 1 1 6 3 10 5 Max Kills in Single Turn 2 | 1 1 2 1 1 . 1 1 . 1 1 . 1 1 1 1 1 2 1 1 1 1 1 1 Gunslinging . | . . . . . . . . . . . . . . . . . . . . . . . . Exploded . | . . . . . . . . . . . . . . . . . . . . . . . . Melee 1 | . . . 1 1 . 1 . . . . . 1 1 . . . . 1 . 1 1 1 1 Uniques/NPCs Destroyed 3 | . . . . . . . . . . 1 . . . . 1 . . . 1 . . . . Z-Imprinter (-6/Deep Caves) A7 (-4/Cetus) CL-0N3 (-3/Quarantine) Combat | -11 -10 -10 -10 -9 -9 -6 -6 -6 -6 -6 -5 -5 -4 -4 -4 -4 -4 -3 -3 -3 -2 -2 -1 -------- Run | Yrd Mat Min Sub Rec Scr Fac Low Low Zio Dee Pro Fac Fac Ext Cet Arc Hub Res Qua Frg Res Tes Acc Hostile Shots Fired 852 | . 90 21 38 11 . 89 4 . 4 12 35 23 43 6 47 . 55 13 59 144 14 36 108 Missed 328 | . 25 6 16 4 . 27 3 . . 4 7 6 19 1 16 . 23 7 27 47 4 13 73 Hits 524 | . 65 15 22 7 . 62 1 . 4 8 28 17 24 5 31 . 32 6 32 97 10 23 35 Melee 34 | . . . . . . 1 . . . . 1 . . . . . . . 2 15 5 . 10 Projectile 490 | . 65 15 22 7 . 61 1 . 4 8 27 17 24 5 31 . 32 6 30 82 5 23 25 AOE 24 | . . . . 6 . 2 . . . . . . . . . . 2 2 11 1 . . . Critical Strikes 30 | . . 2 1 . . 1 . . 1 . 1 . . . 3 . 1 2 4 11 2 . 1 Part Disruptions 2 | . . . . . . . . . . . . . . . . . 1 . 1 . . . . Damage Taken 8684 | . 482 89 351 206 . 1004 16 37 48 162 365 178 365 157 399 17 613 311 1219 1612 268 164 621 Core 6487 | . 323 58 248 130 . 799 12 24 26 110 194 104 237 114 227 13 481 256 995 1304 211 127 494 Absorbed by Shields 252 | . . . . . . . . . . . . . . . 140 . . . . 63 . . 49 Redirected to Core 5021 | . 277 47 208 101 . 694 12 22 26 80 194 87 140 89 174 13 386 50 577 1055 211 127 451 Ignored by Resistances 6511 | . 300 61 148 118 . 540 9 20 28 169 304 189 239 129 415 10 397 97 588 1786 201 366 397 Regen/Repaired (Parts) 684 | . . . 25 3 . 71 . . . 9 6 2 15 2 40 255 35 80 100 41 . . . Core Remaining (%) 89 | 100 . . . . 98 . . . . . 100 98 . . . . 65 . . 100 . 92 63 Volleys Fired 321 | 11 92 86 4 . . . 8 . 7 29 19 11 . . 6 . . . . 30 3 . 15 Largest 3 | 2 2 3 1 . . . 1 . 1 1 1 1 . . 1 . . . . 1 1 . 1 Hottest 140 | 40 46 76 30 . . . 85 . 85 85 85 85 . . 30 . . . . 75 60 . 140 Shots Fired 453 | 22 184 115 4 . . . 8 . 7 29 19 11 . . 6 . . . . 30 3 . 15 Gun 306 | 22 184 54 . . . . . . . . . . . . . . . . . 30 3 . 13 Cannon 140 | . . 61 4 . . . 8 . 7 28 19 11 . . . . . . . . . . 2 Launcher . | . . . . . . . . . . . . . . . . . . . . . . . . Special 7 | . . . . . . . . . . 1 . . . . 6 . . . . . . . . Kinetic 325 | 22 184 115 4 . . . . . . . . . . . . . . . . . . . . Thermal 81 | . . . . . . . 8 . 7 28 19 11 . . 6 . . . . . . . 2 Explosive . | . . . . . . . . . . . . . . . . . . . . . . . . Electromagnetic 8 | . . . . . . . . . . . . . . . . . . . . 8 . . . Entropic 38 | . . . . . . . . . . . . . . . . . . . . 22 3 . 13 Robot Hit Streak 34 | 9 25 23 . . . . 9 . 7 9 16 3 . . 9 . . . . 19 21 . 34 Robot Miss Streak 2 | 2 2 2 . . . . 1 . . 2 . 2 . . . . . . . 1 . . . Penetration Max 1 | . . . . . . . . . . . . . . . . . . . . 1 . . . Secondary Targets 2 | . 2 . . . . . . . . . . . . . . . . . . . . . . Max Gunslinging Chain 1 | . 1 . . . . . . . . . . . . . . . . . . . . . . Shots Hit Robots 758 | 17 154 45 1 11 . 17 8 . 3 11 14 11 8 9 33 21 8 96 47 91 21 55 77 Core Hits 279 | 7 45 21 1 6 . 6 5 . 1 3 . 3 4 4 5 8 11 30 13 34 7 30 35 Critical Kills 15 | . . 1 . . . . . . . . . . . . . . . . . 11 1 . 2 Critical Parts Destroyed 3 | . 3 . . . . . . . . . . . . . . . . . . . . . . Critical Strikes 101 | . 3 1 . 2 . 2 . . . . . 1 . 1 2 1 1 2 . 21 11 23 30 Meltdown 14 | . . . . . . . . . . . . . . . . . . . . 11 1 . 2 Destroy 4 | . 3 1 . . . . . . . . . . . . . . . . . . . . . Sever 13 | . . . . 2 . 2 . . . . . 1 . 1 2 1 1 2 . 1 . . . Impale 70 | . . . . . . . . . . . . . . . . . . . . 9 10 23 28 Melee Attacks 617 | . . . 9 12 . 24 1 . . . . 10 13 11 27 21 13 98 59 107 30 85 97 Kinetic 83 | . . . . . . . . . . . . . . . . . . . 30 46 2 2 3 Impact . | . . . . . . . . . . . . . . . . . . . . . . . . Slashing 276 | . . . 9 12 . 24 1 . . . . 10 11 11 27 21 13 98 29 6 . . 4 Piercing 253 | . . . . . . . . . . . . . . . . . . . . 53 28 83 89 Sneak Attacks 206 | . . . . 7 . 7 1 . . . . . 4 5 26 9 . 79 31 15 3 12 7 Combat Hostiles 7 | . . . . . . . . . . . . . . . . . . . . 1 . 3 3 Follow-up Attacks 29 | . . . . . . . . . . . . . . . . . . . . 4 4 8 13 Martial Strikes 16 | . . . . . . . . . . . . . . . . . . . . . . . 16 Damage Inflicted 36018 | 170 2401 770 118 687 . 834 289 . 91 400 438 409 340 488 1456 1419 881 5497 2904 5764 1517 4734 4411 Guns 5083 | 170 2401 719 . . . . . . . . . . . . . . . . . 1144 97 . 552 Cannons 1298 | . . 51 . . . . 213 . 91 400 438 105 . . . . . . . . . . . Explosions 922 | . . . . . . . . . . . . . . . . . 538 . . 384 . . . Melee 28584 | . . . 32 687 . 834 76 . . . . 304 340 488 1411 1419 343 5497 2904 4236 1420 4734 3859 Ramming 86 | . . . 86 . . . . . . . . . . . . . . . . . . . . Kinetic 7750 | 170 2401 770 . . . . . . . . . . . . . . . . 1758 2439 68 73 71 Thermal 1676 | . . . . . . . 213 . 91 400 438 105 . . 45 . . . . 384 . . . Explosive . | . . . . . . . . . . . . . . . . . . . . . . . . Electromagnetic 778 | . . . . . . . . . . . . . . . . . 538 . . 240 . . . Impact . | . . . . . . . . . . . . . . . . . . . . . . . . Slashing 12796 | . . . 32 687 . 834 76 . . . . 304 340 488 1411 1419 343 5497 1146 68 . . 151 Piercing 11379 | . . . . . . . . . . . . . . . . . . . . 1729 1352 4661 3637 Entropic 1553 | . . . . . . . . . . . . . . . . . . . . 904 97 . 552 Highest Corruption 3 | . 1 1 3 3 3 1 1 2 2 . . . . . . . . . . . . . . Average Corruption 1 | . 1 1 1 3 3 1 1 1 2 . . . . . . . . . . . . . . Corruption Purged . | . . . . . . . . . . . . . . . . . . . . . . . . Corruption Blocked 14 | . . . . . . . . . . . . . 1 . . . 3 . 1 8 1 . . Effects 77 | . 9 6 34 16 . 1 7 4 . . . . . . . . . . . . . . . Message Errors 25 | . 2 . 14 3 . 1 3 2 . . . . . . . . . . . . . . . Matter Fused 15 | . 2 3 6 3 . . . 1 . . . . . . . . . . . . . . . Heat Flow Errors 11 | . 2 1 2 4 . . 1 1 . . . . . . . . . . . . . . . Energy Discharges 6 | . 1 . 2 2 . . 1 . . . . . . . . . . . . . . . . Parts Rejected 1 | . . . . 1 . . . . . . . . . . . . . . . . . . . Data Loss (minor) 12 | . 1 2 6 2 . . 1 . . . . . . . . . . . . . . . . Data Loss (major) 3 | . 1 . 2 . . . . . . . . . . . . . . . . . . . . Alerts 4 | . . . 2 1 . . 1 . . . . . . . . . . . . . . . . Overload Shots . | . . . . . . . . . . . . . . . . . . . . . . . . Overflow Damage 4553 | . . . . 32 . 112 69 . . 7 8 . 30 53 44 309 44 643 631 806 394 1169 202 Projectiles 15 | . . . . . . . . . . 7 8 . . . . . . . . . . . . Explosions 40 | . . . . . . . . . . . . . . . . . 32 . . 8 . . . Melee 4498 | . . . . 32 . 112 69 . . . . . 30 53 44 309 12 643 631 798 394 1169 202 Knockbacks 1 | . . 1 . . . . . . . . . . . . . . . . . . . . . Impact . | . . . . . . . . . . . . . . . . . . . . . . . . Kinetic 1 | . . 1 . . . . . . . . . . . . . . . . . . . . . Secondary . | . . . . . . . . . . . . . . . . . . . . . . . . Self-Inflicted Damage 86 | . . . 86 . . . . . . . . . . . . . . . . . . . . Shots . | . . . . . . . . . . . . . . . . . . . . . . . . Rammed 1 | . 1 . . . . . . . . . . . . . . . . . . . . . . Targets Rammed 1 | . 1 . . . . . . . . . . . . . . . . . . . . . . Kicked . | . . . . . . . . . . . . . . . . . . . . . . . . Crushed . | . . . . . . . . . . . . . . . . . . . . . . . . Highest Temperature 302 | 6 215 121 148 274 . 28 190 144 136 45 228 147 7 . 6 . 58 . 42 30 200 161 302 Average Temperature 49 | 4 27 27 74 113 . 18 81 81 63 30 105 64 4 . 3 . 17 . 25 14 49 27 55 Received Heat Transfer 2125 | . 435 48 120 18 . 210 . 18 40 90 260 135 87 57 70 . 45 48 30 396 9 9 . Siege Activations . | . . . . . . . . . . . . . . . . . . . . . . . . Martial Activations . | . . . . . . . . . . . . . . . . . . . . . . . . Shielding Activations . | . . . . . . . . . . . . . . . . . . . . . . . . Robots Disrupted 1 | . . . . . . . . . . . . . . . 1 . . . . . . . . Combat Hostiles . | . . . . . . . . . . . . . . . . . . . . . . . . Robots Corrupted 3 | . . . . . . . . . . . . . . . . . 1 . . 2 . . . Combat Hostiles 3 | . . . . . . . . . . . . . . . . . 1 . . 2 . . . Parts Fried 11 | . . . . . . . . . . . . . . . . . 6 . 2 3 . . . Impact Corruptions . | . . . . . . . . . . . . . . . . . . . . . . . . Robots Melted 14 | . . . . . . . . . . . . . . . . . . . . 11 1 . 2 Combat Hostiles 13 | . . . . . . . . . . . . . . . . . . . . 10 1 . 2 Parts Melted 14 | . . 1 . . . . . . 1 4 . . . . . . . . . 8 . . . Heat Transferred 1729 | . . . . . . . 259 . 111 453 518 111 . . 77 . . . . 200 . . . Parts Sabotaged 1 | . . . . . . 1 . . . . . . . . . . . . . . . . . Parts Stolen . | . . . . . . . . . . . . . . . . . . . . . . . . Parts Stripped 248 | . . . . . . . . . . . . . . . . . . . 142 106 . . . Power Chain Reactions 2 | . . . . . . . . . . . . . . . . . . . . 2 . . . Alert | -11 -10 -10 -10 -9 -9 -6 -6 -6 -6 -6 -5 -5 -4 -4 -4 -4 -4 -3 -3 -3 -2 -2 -1 ------- Run | Yrd Mat Min Sub Rec Scr Fac Low Low Zio Dee Pro Fac Fac Ext Cet Arc Hub Res Qua Frg Res Tes Acc Maximum Alert Level 2 | . . . . . . . . . . . . . . 1 . . 2 2 1 1 . 2 1 Low Security (%) 89 | 100 100 100 . 100 . 100 . . . . . 100 100 61 100 100 97 58 96 74 100 36 84 Level 1 8 | . . . . . . . . . . . . . . 38 . . 2 33 3 25 . 29 15 Level 2 1 | . . . . . . . . . . . . . . . . . . 7 . . . 33 . Level 3 . | . . . . . . . . . . . . . . . . . . . . . . . . Level 4 . | . . . . . . . . . . . . . . . . . . . . . . . . Level 5 . | . . . . . . . . . . . . . . . . . . . . . . . . High Security . | . . . . . . . . . . . . . . . . . . . . . . . . Max Security . | . . . . . . . . . . . . . . . . . . . . . . . . Peak Influence 628 | 5 60 51 . 60 . 131 . . . . . 151 186 321 76 97 459 451 246 303 70 628 280 Initial 259 | . . 10 . . . . . . . . . . 18 . . . . 40 78 . 9 . 259 Average 56 | 1 13 7 . 6 . 11 . . . . . 46 42 114 12 17 63 180 42 134 2 298 64 Influence Increases 11307 | 15 643 299 197 337 . 592 268 147 . . 139 518 524 625 198 181 886 1187 1508 1480 183 816 564 Destroy 0b10 Robot/C 6740 | . 400 200 140 80 . 320 220 100 . . 100 320 320 400 140 80 260 740 820 1020 100 540 440 Destroy 0b10 Robot/NC 645 | 15 45 45 . 25 . 65 . . . . . 10 15 30 10 45 55 55 110 45 20 30 25 Destroy Leader 1006 | . 88 50 . . . 54 10 10 . . 20 72 72 44 . . 76 106 114 122 36 68 64 Allied During Kill 1024 | . . 4 12 . . 28 38 22 . . 19 75 31 111 40 33 85 193 201 96 . 32 4 Trap Triggered on 0b10 60 | . . . . . . . . . . . . . . . . . . . . 60 . . . Successful Hack 219 | . 21 . . 18 . 21 . . . . . 8 12 10 . . . 9 57 31 12 12 8 Select Force Hacks 290 | . 30 . . 210 . . . . . . . . . . . . 50 . . . . . . Disable Machine 280 | . 8 . . 4 . 64 . . . . . . 8 4 . 8 44 4 32 64 . 32 8 Destroy Structure 728 | . 6 . . . . 40 . . . . . 18 66 26 8 . 286 50 174 12 15 12 15 Partial Spotted 90 | . . . . . . . . . . . . . . . . 15 15 . . 30 . 30 . Lose Combat Pursuer 225 | . 45 . 45 . . . . 15 . . . 15 . . . . 15 30 . . . 60 . Influence Decreases 11307 | 15 606 336 197 337 . 592 268 147 . . 139 465 577 625 198 181 780 1106 1695 1458 205 245 1135 Entered New Map 562 | . . 27 . . . . . . . . . . 35 . . . . 66 109 . 13 . 312 Time Decay 8908 | 15 556 309 177 337 . 376 268 147 . . 139 425 480 395 148 181 270 1000 1137 1348 192 245 763 Lost Part 10 | . . . . . . . . . . . . . . . 10 . . . . . . . . Lost Ally 871 | . . . 20 . . 210 . . . . . 40 62 80 40 . 60 40 149 110 . . 60 Purge Threat 956 | . 50 . . . . 6 . . . . . . . 150 . . 450 . 300 . . . . Squads Dispatched 73 | . 5 . . . . 4 . . . . . 8 6 3 . . 5 8 11 5 5 8 5 Investigation 20 | . 5 . . . . 1 . . . . . 3 2 2 . . 2 2 . 3 . . . Extermination 26 | . . . . . . 3 . . . . . 2 3 . . . 1 . 4 1 5 2 5 Reinforcement 20 | . . . . . . . . . . . . . 1 1 . . 2 6 6 1 . 3 . Assault 3 | . . . . . . . . . . . . . . . . . . . . . . 3 . Garrison 4 | . . . . . . . . . . . . 3 . . . . . . 1 . . . . Intercept . | . . . . . . . . . . . . . . . . . . . . . . . . Searches Triggered . | . . . . . . . . . . . . . . . . . . . . . . . . Unchained Authorized 1 | . . . . . . . . . . . . . . . . . . . 1 . . . . Construction Impeded 3 | . . . . . . . . . . . . . . 1 . . 1 . 1 . . . . Haulers Reinforced 2 | . . . . . . . . . . . . . . . . . . 2 . . . . . Active Scanning Responses . | . . . . . . . . . . . . . . . . . . . . . . . . Cargo Convoy Interrupts 2 | . . . . . . 1 . . . . . . 1 . . . . . . . . . . Stealth | -11 -10 -10 -10 -9 -9 -6 -6 -6 -6 -6 -5 -5 -4 -4 -4 -4 -4 -3 -3 -3 -2 -2 -1 --------- Run | Yrd Mat Min Sub Rec Scr Fac Low Low Zio Dee Pro Fac Fac Ext Cet Arc Hub Res Qua Frg Res Tes Acc Distress Signals 24 | . 3 . . . . 3 . . . . . 1 . 3 2 . 2 5 4 1 . . . Communications Jammed . | . . . . . . . . . . . . . . . . . . . . . . . . Distress Signals . | . . . . . . . . . . . . . . . . . . . . . . . . Times Spotted 424 | . 30 9 23 6 . 26 12 4 1 9 7 16 18 17 12 12 31 39 42 54 7 28 21 Peak Tracking Total 8 | . 4 2 6 3 . 7 5 3 1 6 3 4 7 6 5 2 8 8 5 4 3 6 5 Tactical Retreats 9 | . 3 . 1 . . . . 1 . . . 1 . . . . 1 1 . . . 1 . Traps | -11 -10 -10 -10 -9 -9 -6 -6 -6 -6 -6 -5 -5 -4 -4 -4 -4 -4 -3 -3 -3 -2 -2 -1 ------- Run | Yrd Mat Min Sub Rec Scr Fac Low Low Zio Dee Pro Fac Fac Ext Cet Arc Hub Res Qua Frg Res Tes Acc Traps Triggered 26 | . 3 . . . . . . . . . . . 1 4 . . . 1 1 15 1 . . Indirectly . | . . . . . . . . . . . . . . . . . . . . . . . . Trap Hack Attempts 1 | . . . . . . . . . . . . . . . . . . . . . . . 1 Triggered . | . . . . . . . . . . . . . . . . . . . . . . . . Disarmed 4 | . . . . . . . . . . . . . . . . . 4 . . . . . . Reprogrammed 8 | . . . . . . . . . . . . . . . . . 2 . . 6 . . . Reused 6 | . . . . . . . . . . . . . . . . . . . . 6 . . . Traps Extracted . | . . . . . . . . . . . . . . . . . . . . . . . . Installed . | . . . . . . . . . . . . . . . . . . . . . . . . Triggered 6 | . . . . . . . . . . . . . . . . . . . . 6 . . . Objects Rigged 2 | . . . . . . . . . . . . . . . . . 2 . . . . . . Exploded 1 | . . . . . . . . . . . . . . . . . 1 . . . . . . Machines | -11 -10 -10 -10 -9 -9 -6 -6 -6 -6 -6 -5 -5 -4 -4 -4 -4 -4 -3 -3 -3 -2 -2 -1 ---------- Run | Yrd Mat Min Sub Rec Scr Fac Low Low Zio Dee Pro Fac Fac Ext Cet Arc Hub Res Qua Frg Res Tes Acc Machines Disabled 76 | . 2 . 2 1 . 16 . . . 1 . . 2 1 . 2 11 1 8 19 . 8 2 Max in Single Turn 10 | . 1 . 1 1 . 1 . . . . . . . . . . 10 . 1 1 . 1 1 Garrison Access 6 | . . . . . . 1 . . . . . . . . . . 1 2 1 1 . . . Network Hub 4 | . . . . . . . . . . . . . . . . . 4 . . . . . . Machines Repaired . | . . . . . . . . . . . . . . . . . . . . . . . . Machines Dismantled . | . . . . . . . . . . . . . . . . . . . . . . . . Machines Sabotaged 1 | . . . . . . . . . . . . . . . . . 1 . . . . . . Overloaded Fab Kills . | . . . . . . . . . . . . . . . . . . . . . . . . Hacking | -11 -10 -10 -10 -9 -9 -6 -6 -6 -6 -6 -5 -5 -4 -4 -4 -4 -4 -3 -3 -3 -2 -2 -1 --------- Run | Yrd Mat Min Sub Rec Scr Fac Low Low Zio Dee Pro Fac Fac Ext Cet Arc Hub Res Qua Frg Res Tes Acc Machines Accessed 96 | . 7 . 4 12 2 9 2 . . . . 5 4 9 1 . 12 6 10 8 2 2 1 Terminals 53 | . 6 . . 5 . 6 . . . . . 1 2 8 1 . 11 . 8 3 . 1 1 Fabricators 7 | . . . . . . 1 . . . . . 2 1 . . . . 2 . . 1 . . Repair Stations . | . . . . . . . . . . . . . . . . . . . . . . . . Recycling Units 18 | . 1 . . 7 . 1 . . . . . 1 1 1 . . . 2 . 3 1 . . Scanalyzers 3 | . . . . . . . . . . . . . . . . . . . 1 1 . 1 . Garrison Access 7 | . . . . . . 1 . . . . . 1 . . . . 1 2 1 1 . . . Total Hacks 320 | . 28 . 7 37 25 27 8 . . . . 26 12 15 1 . 44 14 37 22 7 3 7 Successful 241 | . 20 . 7 31 25 19 8 . . . . 16 7 10 1 . 37 11 28 11 5 2 3 Failed 79 | . 8 . . 6 . 8 . . . . . 10 5 5 . . 7 3 9 11 2 1 4 Catastrophic 5 | . . . . . . . . . . . . . 2 1 . . . . 2 . . . . Database Lockouts . | . . . . . . . . . . . . . . . . . . . . . . . . Manual 151 | . 17 . . 26 . 11 . . 4 . . 9 8 7 1 . 26 3 18 15 5 1 . Terminals 189 | . 26 . . 22 . 18 . . . . . 6 8 14 1 . 43 . 30 12 . 2 7 Fabricators 34 | . . . . . . 7 . . . . . 13 3 . . . . 7 . . 4 . . Repair Stations . | . . . . . . . . . . . . . . . . . . . . . . . . Recycling Units 35 | . 2 . . 15 . 1 . . . . . 4 1 1 . . . 3 . 5 3 . . Scanalyzers 8 | . . . . . . . . . . . . . . . . . . . 6 1 . 1 . Garrison Access 14 | . . . . . . 1 . . . . . 3 . . . . 1 4 1 4 . . . Terminal Hacks 135 | . 14 . 7 9 25 10 8 . . . . 1 3 8 1 . 26 . 17 2 . 1 3 Record 36 | . . . 4 . 25 . 7 . . . . . . . . . . . . . . . . Part Schematic 9 | . 2 . . 2 . 1 . . . . . . . 1 . . 2 . 1 . . . . Robot Schematic 1 | . . . . . . . . . . . . . . . . . . . 1 . . . . Robot Analysis 11 | . 4 . . 3 . 3 . . . . . . . 1 . . . . . . . . . Prototype ID Bank 4 | . 2 . . 1 . . . . . . . . 1 . . . . . . . . . . Open Door 8 | . . . 1 . . . 1 . . . . . . 5 1 . . . . . . . . Level Access Points 3 | . . . . . . . . . . . . . . . . . 1 . 1 . . . 1 Branch Access Points 2 | . 1 . . . . . . . . . . . . . . . . . . . . . 1 Emergency Access Points 3 | . 1 . . . . . . . . . . . . . . . 1 . 1 . . . . Machine Index 1 | . . . . . . . . . . . . . . . . . 1 . . . . . . Terminal Index 1 | . . . . 1 . . . . . . . . . . . . . . . . . . . Alert Level 4 | . . . . . . 1 . . . . . . . . . . 1 . 2 . . . . Unreport Threat 11 | . 1 . . 1 . 1 . . . . . . . 1 . . 3 . 4 . . . . Locate Traps 5 | . . . . . . 2 . . . . . . . . . . 2 . . 1 . . . Disarm Traps 1 | . . . . . . . . . . . . . . . . . 1 . . . . . . Reprogram Traps 2 | . . . . . . . . . . . . . . . . . 1 . . 1 . . . Recall Investigation 3 | . . . . . . . . . . . . . 1 . . . 1 . 1 . . . . Recall Extermination 3 | . . . . . . . . . . . . 1 . . . . 1 . 1 . . . . Recall Reinforcements 5 | . . . . . . . . . . . . . 1 . . . 2 . 2 . . . . Hauler Manifests 3 | . 1 . . . . 1 . . . . . . . . . . 1 . . . . . . Registered Components 5 | . 1 . . . . 1 . . . . . . . . . . 1 . 1 . . . 1 Registered Prototypes 2 | . . . . . . . . . . . . . . . . . 1 . 1 . . . . Zone Layout 9 | . 1 . . 1 . . . . . . . . . . . . 6 . 1 . . . . Proto ID Catalog 1 | . . . 1 . . . . . . . . . . . . . . . . . . . . Protovariant Controls 1 | . . . . . . . . . . . . . . . . . . . . . . 1 . Release Object 1 | . . . 1 . . . . . . . . . . . . . . . . . . . . Fabricator Hacks 24 | . . . . . . 5 . . . . . 10 3 . . . . 5 . . 1 . . Network Status 5 | . . . . . . 1 . . . . . 1 1 . . . . 1 . . 1 . . Load Schematic 9 | . . . . . . 2 . . . . . 4 1 . . . . 2 . . . . . Build 10 | . . . . . . 2 . . . . . 5 1 . . . . 2 . . . . . Repair Station Hacks . | . . . . . . . . . . . . . . . . . . . . . . . . Recycling Unit Hacks 10 | . 1 . . 8 . . . . . . . . . . . . . 1 . . . . . Report Inventory 9 | . 1 . . 7 . . . . . . . . . . . . . 1 . . . . . Retrieve Components 1 | . . . . 1 . . . . . . . . . . . . . . . . . . . Scanalyzer 5 | . . . . . . . . . . . . . . . . . . . 5 . . . . Insert Component 3 | . . . . . . . . . . . . . . . . . . . 3 . . . . Retrieve Study 2 | . . . . . . . . . . . . . . . . . . . 2 . . . . Garrison Access Hacks 6 | . . . . . . 1 . . . . . . . . . . 1 2 1 1 . . . Seal Access 6 | . . . . . . 1 . . . . . . . . . . 1 2 1 1 . . . Unauthorized Hacks 61 | . 5 . . 14 . 3 . . . . . 5 1 2 . . 10 3 5 8 4 1 . Terminals 30 | . 4 . . 7 . . . . . . . . . 1 . . 10 . 4 4 . . . Track 3 | . . . . . . . . . . . . . . . . . 1 . 1 1 . . . Assimilate 5 | . . . . . . . . . . . . . . . . . 2 . 1 2 . . . Botnet 8 | . . . . 2 . . . . . . . . . 1 . . 2 . 2 1 . . . Detonate 3 | . . . . . . . . . . . . . . . . . 3 . . . . . . Skim 5 | . . . . 5 . . . . . . . . . . . . . . . . . . . Sabotage 2 | . . . . . . . . . . . . . . . . . 2 . . . . . . Search 4 | . 4 . . . . . . . . . . . . . . . . . . . . . . Fabricators 5 | . . . . . . 2 . . . . . 1 . . . . . 1 . . 1 . . Prioritize 3 | . . . . . . 1 . . . . . 1 . . . . . 1 . . . . . Haulers 2 | . . . . . . 1 . . . . . . . . . . . . . . 1 . . Repair Stations . | . . . . . . . . . . . . . . . . . . . . . . . . Recycling Units 23 | . 1 . . 7 . 1 . . . . . 4 1 1 . . . 2 . 3 3 . . Reject 2 | . . . . . . . . . . . . 1 . . . . . . . . 1 . . Recyclers 2 | . . . . . . . . . . . . 1 . . . . . . . . 1 . . Mask 2 | . . . . . . . . . . . . 1 . . . . . . . . 1 . . Tunnel 8 | . 1 . . 7 . . . . . . . . . . . . . . . . . . . Fedlink 7 | . . . . . . . . . . . . 1 1 . . . . 2 . 3 . . . Scrapoids 2 | . . . . . . 1 . . . . . . . 1 . . . . . . . . . Scanalyzers 3 | . . . . . . . . . . . . . . . . . . . 1 1 . 1 . Researchers 3 | . . . . . . . . . . . . . . . . . . . 1 1 . 1 . Garrison Access . | . . . . . . . . . . . . . . . . . . . . . . . . Data Cores Recovered 8 | . . . . . . 1 . . . . . . . . . . 2 . 1 1 . 2 1 Used 1 | . . . . . . . . . . . . . . . . . 1 . . . . . . Hacking Detections 48 | . 7 . . 7 . 6 . . . . . 3 3 5 . . 5 3 3 4 . 1 1 Full Trace Events 2 | . . . . . . . . . . . . 2 . . . . . . . . . . . Feedback Events . | . . . . . . . . . . . . . . . . . . . . . . . . Feedback Blocked . | . . . . . . . . . . . . . . . . . . . . . . . . Robot Schematics Acquired 54 | . . . . . . . . . . . . . . . . . . . 54 . . . . Robots Built 2 | . . . . . . . . . . . . 2 . . . . . . . . . . . Authchips . | . . . . . . . . . . . . . . . . . . . . . . . . Time 76 | . . . . . . . . . . . . 76 . . . . . . . . . . . Total Robot Build Rating 10 | . . . . . . . . . . . . 10 . . . . . . . . . . . Part Schematics Acquired 90 | . 2 . . 2 16 4 6 1 10 2 . 2 1 1 . . 2 . 17 11 . 13 . Parts Built 16 | . . . . . . 3 . . . . . 8 2 . . . . 3 . . . . . Authchips 1 | . . . . . . 1 . . . . . . . . . . . . . . . . . Time 473 | . . . . . . 120 . . . . . 210 17 . . . . 126 . . . . . Total Part Build Rating 63 | . . . . . . 7 . . . . . 32 2 . . . . 22 . . . . . Part Studies Acquired 2 | . . . . . . . . . . . . . . . . . . . 2 . . . . Parts Repaired . | . . . . . . . . . . . . . . . . . . . . . . . . Time . | . . . . . . . . . . . . . . . . . . . . . . . . Parts Recycled . | . . . . . . . . . . . . . . . . . . . . . . . . Recycled Matter . | . . . . . . . . . . . . . . . . . . . . . . . . Retrieved Matter . | . . . . . . . . . . . . . . . . . . . . . . . . Retrieved Components 3 | . . . . 3 . . . . . . . . . . . . . . . . . . . Parts Scanalyzed . | . . . . . . . . . . . . . . . . . . . . . . . . Part Schematics Acquired . | . . . . . . . . . . . . . . . . . . . . . . . . Parts Damaged . | . . . . . . . . . . . . . . . . . . . . . . . . Bothacking | -11 -10 -10 -10 -9 -9 -6 -6 -6 -6 -6 -5 -5 -4 -4 -4 -4 -4 -3 -3 -3 -2 -2 -1 ------------ Run | Yrd Mat Min Sub Rec Scr Fac Low Low Zio Dee Pro Fac Fac Ext Cet Arc Hub Res Qua Frg Res Tes Acc Used RIF Installer . | . . . . . . . . . . . . . . . . . . . . . . . . Robots Hacked 5 | . . . . . . . . . . . . . 2 . . . . . . 2 . . 1 Non-combat 1 | . . . . . . . . . . . . . 1 . . . . . . . . . . Combat 4 | . . . . . . . . . . . . . 1 . . . . . . 2 . . 1 Robot Hacks Applied 5 | . . . . . . . . . . . . . 2 . . . . . . 2 . . 1 parse_system 4 | . . . . . . . . . . . . . 1 . . . . . . 2 . . 1 check_alert 1 | . . . . . . . . . . . . . 1 . . . . . . . . . . Relay Couplers Released 4 | . . . . . . . . . . 2 . . . . . . 1 . . 1 . . . Machine Destruction 2 | . . . . . . . . . . . . . . . . . 1 . . 1 . . . Programmers 2 | . . . . . . . . . . 2 . . . . . . . . . . . . . Fabnet Peak Effective % . | . . . . . . . . . . . . . . . . . . . . . . . . Robots Rewired 5 | . . . . 1 . . 1 . . . . . . . . . . . . . . 3 . Allies Hacked 9 | . . . . . . 1 . . . . . . 2 . . . . 3 1 2 . . . Hacks Repelled . | . . . . . . . . . . . . . . . . . . . . . . . . Allies | -11 -10 -10 -10 -9 -9 -6 -6 -6 -6 -6 -5 -5 -4 -4 -4 -4 -4 -3 -3 -3 -2 -2 -1 -------- Run | Yrd Mat Min Sub Rec Scr Fac Low Low Zio Dee Pro Fac Fac Ext Cet Arc Hub Res Qua Frg Res Tes Acc Total Allies 38 | . . 2 . 1 . 5 3 . . . . 2 . 10 5 . 1 . 1 5 . 3 . Largest Group 7 | . . 2 2 1 1 5 2 2 . . . 2 1 5 7 6 6 1 1 4 . 3 3 Highest-Rated Group 668 | . . 41 41 7 7 143 45 45 . . . 82 41 241 668 509 423 91 10 409 . 270 270 Highest-Rated Ally 159 | . . 31 31 7 7 31 29 25 . . . 41 41 159 159 96 96 91 10 123 . 90 90 Initial UFD Resources 72 | . . . . . . 22 19 19 19 19 22 22 35 45 42 42 42 45 59 59 69 69 72 Total Orders 30 | . . . 8 . . 2 3 . 1 5 . 2 . 1 . . . . 4 1 . 2 1 STAY 10 | . . . 2 . . 1 1 . 1 1 . 1 . . . . . . 2 . . 1 . ROAM 2 | . . . 2 . . . . . . . . . . . . . . . . . . . . FOLLOW 11 | . . . 3 . . 1 1 . . 2 . 1 . . . . . . 2 . . 1 . GUARD 2 | . . . 1 . . . . . . . . . . . . . . . . 1 . . . DROP 2 | . . . . . . . 1 . . . . . . 1 . . . . . . . . . PICKUP 2 | . . . . . . . . . . 2 . . . . . . . . . . . . . RETURN 1 | . . . . . . . . . . . . . . . . . . . . . . . 1 Ally Attacks 1518 | . . 2 109 13 . 109 25 16 1 62 26 53 52 166 74 29 168 195 243 156 . 10 9 Total Damage 51032 | . . 43 1895 375 . 3921 833 664 74 1547 1076 1845 2040 5081 2268 1166 5049 7191 9657 5538 . 376 393 Kills 277 | . . 1 18 3 . 25 9 5 . 12 5 16 16 25 10 4 21 40 49 17 . . 1 Allies Corrupted 17 | . . . . . . 1 . . . . . . 2 . . . 4 . 6 4 . . . Allies Melted 1 | . . . . . . . . . . . . . 1 . . . . . . . . . . Borg Created 90 | . . . 6 2 . 12 3 . . . 2 1 6 3 1 1 . 25 24 4 . . . Largest Collective 8 | . . . 5 3 . 5 8 . . . 6 7 4 5 4 5 . 6 5 4 . . . Intel | -11 -10 -10 -10 -9 -9 -6 -6 -6 -6 -6 -5 -5 -4 -4 -4 -4 -4 -3 -3 -3 -2 -2 -1 ------- Run | Yrd Mat Min Sub Rec Scr Fac Low Low Zio Dee Pro Fac Fac Ext Cet Arc Hub Res Qua Frg Res Tes Acc Active Infowar (turns) 22738 | . . 262 3628 1122 1904 1097 584 108 839 555 557 818 1057 773 382 4 286 1234 2353 730 2263 342 1840 Terrain 8722 | . . . . . . . . . . 555 557 818 1057 773 351 . . 1174 2353 638 287 103 56 Structural 9925 | . . 262 3628 1122 1904 1097 584 108 839 . . . . . 31 4 286 60 . . . . . Cloaking 4537 | . . . . . . . . . . . . . . . . . . . . 92 2263 342 1840 Robot Analysis Total 101 | . 4 . . 3 . 3 . . . . . . . 1 . . . . 90 . . . . Derelict Logs Recovered 10 | . . 1 3 . 1 . 3 1 1 . . . . . . . . . . . . . . Drone Launches 1 | . . . . . . . . . . . . . . . . . . . . . . . 1 Drone Recoveries 1 | . . . . . . . . . . . . . . . . . . . . . . . 1 Exploration | -11 -10 -10 -10 -9 -9 -6 -6 -6 -6 -6 -5 -5 -4 -4 -4 -4 -4 -3 -3 -3 -2 -2 -1 ------------- Run | Yrd Mat Min Sub Rec Scr Fac Low Low Zio Dee Pro Fac Fac Ext Cet Arc Hub Res Qua Frg Res Tes Acc Turns Passed 29677 | 161 1359 1212 3875 1122 1904 1283 1092 308 911 1259 557 818 1057 773 550 694 445 1394 2353 1947 2264 342 1997 Spaces Moved 22486 | 86 541 919 1766 595 1476 858 833 227 715 771 346 437 675 466 267 317 860 1840 2320 3616 834 931 790 Core 111 | 25 . . . . . . . . . . . . . . . 86 . . . . . . . Treads 412 | 61 342 9 . . . . . . . . . . . . . . . . . . . . . Legs 507 | . . . 190 317 . . . . . . . . . . . . . . . . . . . Wheels 8539 | . 199 910 1576 278 1476 858 833 227 715 771 346 350 . . . . . . . . . . . Hover . | . . . . . . . . . . . . . . . . . . . . . . . . Flight 12917 | . . . . . . . . . . . . 87 675 466 267 231 860 1840 2320 3616 834 931 790 Fastest Speed 10 | 50 95 80 95 135 108 108 111 111 111 111 111 110 119 110 28 28 12 14 17 10 10 10 10 Average Speed 68 | 130 136 87 131 169 126 110 111 111 111 111 111 112 124 113 89 88 25 24 25 15 10 10 10 Slowest Speed 250 | 160 160 160 200 200 135 135 135 111 111 111 111 130 130 119 110 250 28 28 100 87 10 10 10 Overloaded Moves 40 | . . . . . . . . . . . . . . . . . 13 . 12 15 . . . Propulsion Burnouts . | . . . . . . . . . . . . . . . . . . . . . . . . Robots Hopped 38 | . . . . . . . . . . . . . . . . . 6 10 3 15 2 2 . Potential Cave-ins . | . . . . . . . . . . . . . . . . . . . . . . . . Cave-ins Triggered . | . . . . . . . . . . . . . . . . . . . . . . . . Teleports 1 | . . . . . . . . . . . . . . . . . . . . 1 . . . Exploration Rate (%) 61 | 4 78 99 97 95 88 24 81 56 84 70 69 9 14 69 69 84 79 40 84 67 15 86 14 Regions Visited 23 Branch Regions 16 Pre-discovered Areas 20 | . 1 1 2 10 4 . . . 1 . . . 1 . . . . . . . . . . Known Exits Taken 23 | 1 1 1 1 1 1 1 1 1 1 1 1 1 1 1 1 1 1 1 1 1 1 1 . Unknown Exits Taken . | . . . . . . . . . . . . . . . . . . . . . . . . Scrap Searched 21 | . . 2 7 . 7 . 1 1 2 . 1 . . . . . . . . . . . . Spaces Dug 59 | . . 5 6 . . 6 . . . 4 2 5 4 . . . 2 1 9 1 5 4 5 Terrain Destroyed 224 | . . 5 6 . . 6 1 . . 14 5 6 4 . . . 152 1 9 1 5 4 5 Melee 40 | . . . 6 . . 6 . . . . . 2 4 . . . 2 1 9 1 4 4 1 Projectile 34 | . . 5 . . . . 1 . . 14 5 4 . . . . . . . . 1 . 4 AOE 150 | . . . . . . . . . . . . . . . . . 150 . . . . . . Terrain Rammed 2 | . . . 2 . . . . . . . . . . . . . . . . . . . . Walls Destroyed . | . . . . . . . . . . . . . . . . . . . . . . . . Machines Disabled 2 | . . . 2 . . . . . . . . . . . . . . . . . . . . Actions | -11 -10 -10 -10 -9 -9 -6 -6 -6 -6 -6 -5 -5 -4 -4 -4 -4 -4 -3 -3 -3 -2 -2 -1 --------- Run | Yrd Mat Min Sub Rec Scr Fac Low Low Zio Dee Pro Fac Fac Ext Cet Arc Hub Res Qua Frg Res Tes Acc Total 35356 | 111 981 1211 3297 686 1515 1132 981 282 824 1146 496 740 863 689 516 690 1053 2568 3938 4844 2989 1150 2654 Wait 10794 | . 305 184 1455 58 28 171 104 51 99 321 108 233 139 127 194 337 170 537 1433 745 2116 131 1748 Move 22392 | 85 540 918 1765 594 1475 857 832 226 714 770 345 436 674 465 266 316 847 1821 2313 3590 829 925 789 Hop 29 | . . . . . . . . . . . . . . . . . 6 8 3 8 2 2 . Pick Up 131 | 6 4 4 8 2 6 7 7 . 1 4 2 11 1 1 2 . . 4 16 43 . 1 1 Fast Attach 102 | 6 1 2 5 3 2 4 2 . 1 1 . 5 3 2 4 . . 3 6 37 2 4 9 Attach 32 | 1 . 1 2 1 1 3 3 . . . . 3 2 . . . . . 3 10 . 1 1 Detach 4 | . . . . . . . . . . . . . 1 . . . . . . 1 . . 2 Swap 113 | 2 7 2 2 . . 2 7 2 1 3 1 4 1 3 5 1 5 9 3 28 10 6 9 Drop 194 | . 8 4 14 3 3 5 10 . 1 5 2 14 5 5 4 . . 9 20 68 . 4 10 Fire 321 | 11 92 86 4 . . . 8 . 7 29 19 11 . . 6 . . . . 30 3 . 15 Melee 518 | . . . 9 12 . 24 1 . . . . 10 13 11 27 21 13 98 59 85 19 59 57 Ram 2 | . . . 2 . . . . . . . . . . . . . . . . . . . . Kick . | . . . . . . . . . . . . . . . . . . . . . . . . Crush 1 | . 1 . . . . . . . . . . . . . . . . . . . . . . Escape Stasis 154 | . . . . . . . . . . . . . . 60 . . . 15 4 74 . 1 . Rewire 13 | . . . . 1 . . 1 . . . . . . . 2 . . . 1 . . 8 . Trap 1 | . . . . . . . . . . . . . . . . . . . . . . . 1 Miscellaneous 555 | . 23 10 31 12 . 59 6 3 . 13 19 13 24 15 6 15 12 64 77 125 8 8 12 Route ------- -11/Scrapyard -10/Materials (discovered 4 exits: *Mat x2 / *Min / *Sub) -10/Mines (discovered 3 exits: *Mat x2 / *Sub) -10/Subcaves (discovered 3 exits: *Mat x2 / *Rec) -9/Recycling (discovered 2 exits: *Fac / *Scr) -9/Scraptown (discovered 2 exits: *Fac x2) -6/Factory (discovered 6 exits: *Fac x4 / *Low x2) -6/Lower Caves -6/Lower Caves (discovered 2 exits: *Fac / *Zio) -6/Zion (discovered 2 exits: *Dee / Pro) -6/Deep Caves -5/Proximity Caves -5/Factory (discovered 3 exits: *Fac / Upp x2) -4/Factory (discovered 5 exits: Res x4 / *Ext) -4/Extension (discovered 3 exits: *Res x2 / *Cet) -4/Cetus (discovered 2 exits: *Res / *Arc) -4/Archives (discovered 3 exits: *Res / *Hub x2) -4/Hub_04(d) (discovered 4 exits: *Res x4) -3/Research (discovered 4 exits: *Res x2 / *Qua x2) -3/Quarantine (discovered 3 exits: *Res / *Sec / *Frg) -3/Protoforge -2/Research -2/Testing -1/Access (discovered 2 exits: *Sur / Com) To Epsilon Eridani History --------- Turn | Location | Event 1 | -11/Scrapyard | Upgraded with Propulsion slot (x1) 1 | -11/Scrapyard | Upgraded with Utility slot (x1) 1 | -11/Scrapyard | Upgraded with Weapon slot (x1) 4 | -11/Scrapyard | Identified exit to Materials 4 | -11/Scrapyard | Discovered exit to Materials (range 16) 162 | -11/Scrapyard | Entered Materials 310 | -10/Materials | Build established: Hacker-Mutant 447 | -10/Materials | Identified exit to Materials 447 | -10/Materials | Discovered exit to Materials (range 16) 654 | -10/Materials | Identified exit to Mines 654 | -10/Materials | Discovered exit to Mines (range 7) 863 | -10/Materials | Discovered exit to Materials (range 9) 1004 | -10/Materials | Reached level 2 1350 | -10/Materials | Identified exit to Subcaves 1350 | -10/Materials | Discovered exit to Subcaves (range 8) 1521 | -10/Materials | Entered Mines 1523 | -10/Mines | Reached level 3 1545 | -10/Mines | Learned location of Storage (-9) 1550 | -10/Mines | Upgraded with Propulsion slot (x1) 1550 | -10/Mines | Upgraded with Weapon slot (x1) 1631 | -10/Mines | Discovered exit to Materials (range 7) 1647 | -10/Mines | Learned 4 Materials zone layouts 1790 | -10/Mines | Discovered exit to Materials (range 12) 1830 | -10/Mines | Found DCF Scrap (13 items) 2164 | -10/Mines | Build established: Hacker-Gunner 2674 | -10/Mines | Discovered exit to Subcaves (range 5) 2733 | -10/Mines | Entered Subcaves 2733 | -10/Subcaves | Accompanied by 2 allies 2735 | -10/Subcaves | Reached level 4 2738 | -10/Subcaves | Led the pair of lost Derelicts to an unsafe place 2778 | -10/Subcaves | Visited 4L-MR0's lab 2793 | -10/Subcaves | Upgraded with Weapon slot (x2) 2795 | -10/Subcaves | Found Prototype Special Melee Weapon 2795 | -10/Subcaves | Identified 1B-0RG's Assimilator 2801 | -10/Subcaves | Upgraded with Propulsion slot (x1) 2801 | -10/Subcaves | Found Cargo Legs 2803 | -10/Subcaves | Attached Cargo Legs, gained temporary slots: Utility x2 2814 | -10/Subcaves | Assimilating 4L-MR0 into Collective. 2875 | -10/Subcaves | Assimilating C2-3W2(z) into Collective. 2888 | -10/Subcaves | Assimilating RC-W41(g) into Collective. 3047 | -10/Subcaves | Assimilating BM-QWR(R) into Collective. 3100 | -10/Subcaves | Build established: Hacker-Mutant 3187 | -10/Subcaves | Learned location of Zion (-6) 3195 | -10/Subcaves | Met a Zionite searching for "candidates" 3210 | -10/Subcaves | Assimilating B4-ZVF(R) into Collective. 3241 | -10/Subcaves | Learned Materials emergency access door positions 3511 | -10/Subcaves | Visited Clippyterm 3514 | -10/Subcaves | Identified exit to Materials 3514 | -10/Subcaves | Identified exit to Recycling 3662 | -10/Subcaves | Shifting Twisted Machinery released Sub. Laser 3708 | -10/Subcaves | Assimilating HC-LOL(R) into Collective. 3765 | -10/Subcaves | Reached level 5 5793 | -10/Subcaves | A Subdweller sparked back to life 5793 | -10/Subcaves | A Subdweller sparked back to life 5793 | -10/Subcaves | A Subdweller sparked back to life 5806 | -10/Subcaves | Found Rainbow Chip 5807 | -10/Subcaves | Attached Rainbow Chip, gained temporary slots: Power, Propulsion, Utility, Weapon 5999 | -10/Subcaves | Found SUBCON Basin 6109 | -10/Subcaves | A swath of the cavern ceiling suddenly collapsed 6221 | -10/Subcaves | Shifting Twisted Machinery released Flamer 6231 | -10/Subcaves | Shifting Twisted Machinery released Riot Gun 6278 | -10/Subcaves | Shifting Twisted Machinery released Scrap Shield 6283 | -10/Subcaves | Shifting Twisted Machinery released Sub. Power Source 6608 | -10/Subcaves | Entered Recycling 6608 | -9/Recycling | Accompanied by 2 allies 6806 | -9/Recycling | Reached level 6 7132 | -9/Recycling | Assimilating Defender 2a into Collective. 7167 | -9/Recycling | Identified exit to Factory 7167 | -9/Recycling | Discovered exit to Factory (range 10) 7375 | -9/Recycling | Assimilating Grenadier 2a into Collective. 7571 | -9/Recycling | Identified exit to Scraptown 7632 | -9/Recycling | Scanned before Scraplab entrance 7648 | -9/Recycling | Learned 8 Materials zone layouts 7663 | -9/Recycling | Learned Materials trap positions 7678 | -9/Recycling | Learned Materials trap positions 7697 | -9/Recycling | Entered Scraplab 7711 | -9/Recycling | Reached level 7 7712 | -9/Recycling | Upgraded with Utility slot (x1) 7730 | -9/Recycling | Entered Scraptown 7730 | -9/Scraptown | Accompanied by 3 allies 7733 | -9/Scraptown | System corruption cleaned by C-Scrubber 7890 | -9/Scraptown | Heard Great Nut preacher, LISTEN AND RECITE! 7955 | -9/Scraptown | Identified exit to Factory 7955 | -9/Scraptown | Discovered exit to Factory (range 14) 7976 | -9/Scraptown | Scanned Subdweller tech in exchange for log data 7980 | -9/Scraptown | Learned Factory emergency access door positions 8025 | -9/Scraptown | Visited Bundlers 8094 | -9/Scraptown | Visited Fellowship of the Rings 8173 | -9/Scraptown | Visited The Evicted 8183 | -9/Scraptown | Tech Extrapolator generated special schematic: Deep Structural Scanner 8474 | -9/Scraptown | Visited UFD Registry 8474 | -9/Scraptown | Registered with UFD as "Microlever" 8520 | -9/Scraptown | Visited Abandonware Association 8535 | -9/Scraptown | Learned abandonware demo "SHUTEYE.EXE" 8535 | -9/Scraptown | Learned abandonware demo "POISON.EXE" 8566 | -9/Scraptown | Visited Scrapoid Pod Storage 8582 | -9/Scraptown | Visited A0-MCA Data Center 8590 | -9/Scraptown | Given a B- rating by A0-MCA 8594 | -9/Scraptown | Found A0-MCA's Component Scanner 8599 | -9/Scraptown | Upgraded with Utility slot (x1) 8625 | -9/Scraptown | Visited Supply Room 8696 | -9/Scraptown | Visited Observation Area 8708 | -9/Scraptown | Visited Cartography Club 8843 | -9/Scraptown | Visited Curators Association 8867 | -9/Scraptown | Visited Junk Repository 8997 | -9/Scraptown | Delivered Scrap Shield to a Scientist 9029 | -9/Scraptown | Tech Extrapolator generated special schematic: Machine Rigger 9361 | -9/Scraptown | Learned location of Lower Caves (-6) 9361 | -9/Scraptown | Learned location of Armory (-4) 9361 | -9/Scraptown | Learned location of Testing (-2) 9361 | -9/Scraptown | Learned 16 Materials zone layouts 9361 | -9/Scraptown | Learned 12 Factory zone layouts 9361 | -9/Scraptown | Learned 16 Factory zone layouts 9361 | -9/Scraptown | Learned 20 Factory zone layouts 9361 | -9/Scraptown | Learned 8 Research zone layouts 9361 | -9/Scraptown | Learned 8 Access zone layouts 9361 | -9/Scraptown | Learned 12 Lower Caves zone layouts 9361 | -9/Scraptown | Learned 16 Lower Caves zone layouts 9361 | -9/Scraptown | Learned 12 Upper Caves zone layouts 9361 | -9/Scraptown | Learned 8 Proximity Caves zone layouts 9361 | -9/Scraptown | Learned Storage emergency access door positions 9361 | -9/Scraptown | Learned location of 2 exits from Factory 9361 | -9/Scraptown | Learned location of 2 exits from Upper Caves 9392 | -9/Scraptown | Found Deep Structural Scanner 9541 | -9/Scraptown | Met Optimus 9541 | -9/Scraptown | Reached level 8 9541 | -9/Scraptown | Accepted into 0bPrime 9599 | -9/Scraptown | Discovered exit to Factory (range 9) 9634 | -9/Scraptown | Entered Factory 9634 | -6/Factory | Accompanied by 3 allies 9635 | -6/Factory | Identified exit to Factory 9636 | -6/Factory | Identified exit to Lower Caves 9636 | -6/Factory | Reached level 9 9636 | -6/Factory | Reached level 10 9636 | -6/Factory | Reached level 11 9636 | -6/Factory | Upgraded with Utility slot (x1) 9750 | -6/Factory | Fabricated Tactical Coordination Suite (x1) 9790 | -6/Factory | Reached level 12 9802 | -6/Factory | Assimilating Conveyor 5a into Collective. 9825 | -6/Factory | Fabricated Hcp. Matter Pod (x2) 9837 | -6/Factory | Tech Extrapolator generated special schematic: Energy Deflector 9928 | -6/Factory | Build established: Hacker-Assassin 10110 | -6/Factory | Assimilating Veteran 5a into Collective. 10306 | -6/Factory | Assimilating Hacker 5a into Collective. 10361 | -6/Factory | Upgraded with Utility slot (x1) 10395 | -6/Factory | Assimilating Hacker 5b into Collective. 10422 | -6/Factory | Lost 5 allies 10444 | -6/Factory | Assimilating Conveyor 5b into Collective. 10465 | -6/Factory | Assimilating Sage 5a into Collective. 10566 | -6/Factory | Scrapoids reinforcements arrived? 10591 | -6/Factory | Assimilating Hacker 5c into Collective. 10614 | -6/Factory | Lost 4 allies 10615 | -6/Factory | Upgraded with Utility slot (x1) 10619 | -6/Factory | Reached level 13 10655 | -6/Factory | Assimilating Slayer 5a into Collective. 10680 | -6/Factory | Assimilating Soldier 5a into Collective. 10720 | -6/Factory | Lost 3 allies 10726 | -6/Factory | Upgraded with Weapon slot (x1) 10764 | -6/Factory | Cargo convoy interrupted 10774 | -6/Factory | Assimilating Freighter 5a into Collective. 10778 | -6/Factory | Core integrity fell below 50% 10784 | -6/Factory | Assimilating Hacker 5d into Collective. 10871 | -6/Factory | Assimilating Conveyor 5c into Collective. 10917 | -6/Factory | Entered Lower Caves 10917 | -6/Lower Caves | Accompanied by 5 allies 10918 | -6/Lower Caves | Identified exit to Lower Caves 10919 | -6/Lower Caves | UFD Scientist delivered a prototype 10935 | -6/Lower Caves | Found Enh. Scrap Shield 10985 | -6/Lower Caves | Learned 4 Factory zone layouts 10988 | -6/Lower Caves | Learned 4 Factory zone layouts 10995 | -6/Lower Caves | Learned Factory non-interactive machine intel 11005 | -6/Lower Caves | Reached level 14 11230 | -6/Lower Caves | Encountered a Warlord checkpoint 11308 | -6/Lower Caves | Assimilating ZM-OMR(M) into Collective. 11397 | -6/Lower Caves | Assimilating 9W-RI7(k) into Collective. 11563 | -6/Lower Caves | Attracted the attention of an 0b10 outpost 11600 | -6/Lower Caves | Assimilating Soldier 5b into Collective. 11692 | -6/Lower Caves | Entered an active Warlord outpost 11696 | -6/Lower Caves | A Commander dispatched an escort 11867 | -6/Lower Caves | Activated DRS Beacon 12009 | -6/Lower Caves | Entered another Lower Caves area 12009 | -6/Lower Caves | Accompanied by 10 allies 12010 | -6/Lower Caves | Commander's escort returned to base 12010 | -6/Lower Caves | Commander's escort returned to base 12010 | -6/Lower Caves | Identified exit to Zion 12011 | -6/Lower Caves | Reached level 15 12066 | -6/Lower Caves | Learned location of 1 exit from Factory 12317 | -6/Lower Caves | Entered Zion 12317 | -6/Zion | Accompanied by 7 allies 12361 | -6/Zion | System corruption cleaned by Quarantine Array 12384 | -6/Zion | Identified exit to Proximity Caves 12384 | -6/Zion | Discovered exit to Proximity Caves (range 19) 12502 | -6/Zion | Acquired unknown access codes intercepted by a Zionite 12503 | -6/Zion | Given A8's code to call for help 12556 | -6/Zion | Tech Extrapolator generated special schematic: Mak. Core Shielding 12557 | -6/Zion | Given the Hacking Drone Bay 12703 | -6/Zion | Tech Extrapolator generated special schematic: Active Sensor Spoofer 12715 | -6/Zion | Turned away by Imprinter 13060 | -6/Zion | Opened final containment barrier to the Deep Caves 13070 | -6/Zion | Identified exit to Deep Caves 13070 | -6/Zion | Discovered exit to Deep Caves (range 11) 13082 | -6/Zion | Tech Extrapolator generated special schematic: Fire Trap 13099 | -6/Zion | Saw the warning signs outside the Deep Caves entrance 13166 | -6/Zion | Attacked by Zionites 13228 | -6/Zion | Entered Deep Caves 13228 | -6/Deep Caves | Accompanied by 7 allies 13230 | -6/Deep Caves | Reached level 16 13432 | -6/Deep Caves | Attacked by Z-Imprinter 13433 | -6/Deep Caves | Attached CPS modules to Z-Imprinter. 13443 | -6/Deep Caves | Allies destroyed Z-Imprinter 13465 | -6/Deep Caves | Found Zio. Metafield Generator 13491 | -6/Deep Caves | Z-Facility disabled 13574 | -6/Deep Caves | Reached level 17 13815 | -6/Deep Caves | Identified exit to Proximity Caves 13815 | -6/Deep Caves | Discovered exit to Proximity Caves (range 6) 13929 | -6/Deep Caves | Found Surveybot 24 Scanner 14487 | -6/Deep Caves | Entered Proximity Caves 14487 | -5/Proximity Caves | Accompanied by 4 allies 14603 | -5/Proximity Caves | Assimilating Fighter 6a into Collective. 14608 | -5/Proximity Caves | Assimilating Soldier 6a into Collective. 14671 | -5/Proximity Caves | Spotted B-75 Beast 14688 | -5/Proximity Caves | Allies destroyed B-75 Beast 14778 | -5/Proximity Caves | Attracted the attention of an 0b10 checkpoint 14799 | -5/Proximity Caves | Reached level 18 14910 | -5/Proximity Caves | Discovered exit to Factory (range 10) 15044 | -5/Proximity Caves | Entered Factory 15044 | -5/Factory | Accompanied by 6 allies 15045 | -5/Factory | Identified exit to Upper Caves 15046 | -5/Factory | Identified exit to Factory 15046 | -5/Factory | Reached level 19 15048 | -5/Factory | Loaded intel: 262 non-interactive machine locations 15058 | -5/Factory | Upgraded with Propulsion slot (x2) 15134 | -5/Factory | Fabricated H-66 Slayer (x2) 15176 | -5/Factory | Fabricated Mak. Flight Unit? 15438 | -5/Factory | Assimilating Machinist 6a into Collective. 15494 | -5/Factory | Reached level 20 15611 | -5/Factory | Fabricated Mak. Flight Unit? 15678 | -5/Factory | Fabricated Mak. Flight Unit (x2) 15740 | -5/Factory | Fabricated Mak. Flight Unit (x2) 15775 | -5/Factory | Loaded intel: 8 recycling unit locations 15862 | -5/Factory | Entered another Factory area 15862 | -4/Factory | Accompanied by 6 allies 15863 | -4/Factory | Identified exit to Research 15864 | -4/Factory | Reached level 21 15864 | -4/Factory | Upgraded with Propulsion slot (x1) 15984 | -4/Factory | Identified exit to Extension 15984 | -4/Factory | Discovered exit to Extension (range 21) 16011 | -4/Factory | Reached level 22 16054 | -4/Factory | Lost 4 allies 16102 | -4/Factory | Assimilating Conveyor 7a into Collective. 16153 | -4/Factory | Fabricated Datajack (x2) 16325 | -4/Factory | Assimilating Sage 7a into Collective. 16474 | -4/Factory | Assimilating Veteran 7a into Collective. 16516 | -4/Factory | Loaded intel: 8 recycling unit locations 16516 | -4/Factory | Learned location of Protoforge (-3) 16598 | -4/Factory | Assimilating Sage 7b into Collective. 16633 | -4/Factory | Cargo convoy interrupted 16660 | -4/Factory | Reached level 23 16671 | -4/Factory | Assimilating Assassin 7a into Collective. 16765 | -4/Factory | Upgraded with Propulsion slot (x1) 16859 | -4/Factory | Assimilating Engineer 7a into Collective. 16919 | -4/Factory | Entered Extension 16919 | -4/Extension | Accompanied by 4 allies 16985 | -4/Extension | Rescued a captive Derelict 16987 | -4/Extension | Rescued a captive Derelict 16988 | -4/Extension | Assimilating AT-Z8E(g) into Collective. 17095 | -4/Extension | Scrapoids reinforcements arrived? 17128 | -4/Extension | Assimilating 04E08-D into Collective. 17227 | -4/Extension | Reached level 24 17233 | -4/Extension | Spotted B-86 Titan 17251 | -4/Extension | Allies destroyed B-86 Titan 17256 | -4/Extension | Assimilating Conveyor 7b into Collective. 17294 | -4/Extension | Spotted B-86 Titan 17308 | -4/Extension | Allies destroyed B-86 Titan 17409 | -4/Extension | Lost 3 allies 17427 | -4/Extension | Rescued a captive Derelict 17523 | -4/Extension | Rescued a captive Derelict 17544 | -4/Extension | Rescued A7 17624 | -4/Extension | Identified exit to Cetus 17624 | -4/Extension | Discovered exit to Cetus (range 13) 17692 | -4/Extension | Entered Cetus 17692 | -4/Cetus | Accompanied by 8 allies (A7) 17697 | -4/Cetus | Acquired a Cetus Manufacturing Module code from A7 17704 | -4/Cetus | Spotted Cetus Guard 17704 | -4/Cetus | Spotted Cetus Guard 17707 | -4/Cetus | Spotted Cetus Guard 17707 | -4/Cetus | Spotted Cetus Guard 17713 | -4/Cetus | Allies destroyed Cetus Guard 17721 | -4/Cetus | Allies destroyed Cetus Guard 17724 | -4/Cetus | Allies destroyed Cetus Guard 17731 | -4/Cetus | Allies destroyed Cetus Guard 17762 | -4/Cetus | Lost 3 allies 17848 | -4/Cetus | Started Cetus Manufacturing Module 17855 | -4/Cetus | Escorted A7 to Cetus Mainframe 17855 | -4/Cetus | Reached level 25 17870 | -4/Cetus | Identified exit to Archives 17870 | -4/Cetus | Discovered exit to Archives (range 17) 17873 | -4/Cetus | Manufactured an Enhanced Grunt 17898 | -4/Cetus | Manufactured an Enhanced Grunt 17923 | -4/Cetus | Manufactured an Enhanced Grunt 17948 | -4/Cetus | Manufactured an Enhanced Grunt 17973 | -4/Cetus | Manufactured an Enhanced Grunt 18014 | -4/Cetus | Spotted Cetus Guard 18014 | -4/Cetus | Spotted Cetus Guard 18016 | -4/Cetus | Spotted Cetus Guard 18018 | -4/Cetus | Spotted Cetus Guard 18035 | -4/Cetus | Assimilating Cetus Guard into Collective. 18035 | -4/Cetus | Allies destroyed Cetus Guard 18041 | -4/Cetus | Allies destroyed Cetus Guard 18048 | -4/Cetus | Allies destroyed Cetus Guard 18050 | -4/Cetus | Met Revision 17 18182 | -4/Cetus | Murdered A7 18185 | -4/Cetus | Extracted ID and sensor layout for unrecognized location from A7's data core 18195 | -4/Cetus | Found Med. Regenerative Plating 18242 | -4/Cetus | Entered Archives 18242 | -4/Archives | Accompanied by 10 allies 18272 | -4/Archives | Discovered exit to Research (range 14) 18297 | -4/Archives | Identified exit to Hub_04(d) 18297 | -4/Archives | Discovered exit to Hub_04(d) (range 18) 18305 | -4/Archives | Assimilating Enhanced Grunt into Collective. 18342 | -4/Archives | Discovered exit to Hub_04(d) (range 18) 18723 | -4/Archives | Build established: Wizard-Assassin 18936 | -4/Archives | Entered Hub_04(d) 18936 | -4/Hub_04(d) | Accompanied by 10 allies 19158 | -4/Hub_04(d) | Spotted B-86 Titan 19161 | -4/Hub_04(d) | Watched by a mysterious "MATRIX" hacker. 19196 | -4/Hub_04(d) | Allies destroyed B-86 Titan 19223 | -4/Hub_04(d) | Network Hub disabled 19226 | -4/Hub_04(d) | Spotted Lightning 19227 | -4/Hub_04(d) | Spotted Lightning 19229 | -4/Hub_04(d) | Spotted Lightning 19234 | -4/Hub_04(d) | Allies destroyed Lightning 19237 | -4/Hub_04(d) | Allies destroyed Lightning 19240 | -4/Hub_04(d) | Reached level 26 19247 | -4/Hub_04(d) | Allies destroyed Lightning 19252 | -4/Hub_04(d) | Build established: Wizard-Scout 19311 | -4/Hub_04(d) | Network Hub disabled 19315 | -4/Hub_04(d) | Spotted Lightning 19316 | -4/Hub_04(d) | Spotted Lightning 19316 | -4/Hub_04(d) | Spotted Lightning 19337 | -4/Hub_04(d) | Network Hub disabled 19344 | -4/Hub_04(d) | Network Hub disabled 19381 | -4/Hub_04(d) | Entered Research 19381 | -3/Research | Accompanied by 3 allies 19382 | -3/Research | Identified exit to Research 19383 | -3/Research | Reached level 27 19384 | -3/Research | Loaded intel: 5 recycling unit locations 19415 | -3/Research | Assimilating Enhanced Grunt into Collective. 19476 | -3/Research | Assimilating Conveyor 8a into Collective. 19554 | -3/Research | Fabricated Q-thruster (x2) 19581 | -3/Research | Revision forces began assault on 0b10 19694 | -3/Research | Identified exit to Quarantine 19694 | -3/Research | Discovered exit to Quarantine (range 18) 19757 | -3/Research | Reached level 28 19763 | -3/Research | Assimilating Processor 8a into Collective. 19794 | -3/Research | Assimilating Conveyor 8b into Collective. 19795 | -3/Research | Discovered exit to Quarantine (range 18) 19829 | -3/Research | Met up with Revision 17++ 19846 | -3/Research | Assimilating Processor 8b into Collective. 19881 | -3/Research | Assimilating Processor 8c into Collective. 19889 | -3/Research | Assimilating Processor 8d into Collective. 19910 | -3/Research | Build established: Hacker-Scout 19916 | -3/Research | Assimilating Processor 8e into Collective. 19921 | -3/Research | Assimilating Processor 8f into Collective. 19946 | -3/Research | Assimilating Processor 8g into Collective. 19957 | -3/Research | Assimilating Processor 8h into Collective. 20017 | -3/Research | Assimilating Processor 8i into Collective. 20023 | -3/Research | Assimilating Processor 8j into Collective. 20081 | -3/Research | Research terminal network offline 20095 | -3/Research | Assimilating Serf 8a into Collective. 20103 | -3/Research | Assimilating Processor 8k into Collective. 20127 | -3/Research | Assimilating Processor 8l into Collective. 20140 | -3/Research | Assimilating Processor 8m into Collective. 20150 | -3/Research | Murdered 4 allies 20156 | -3/Research | Assimilating Processor 8n into Collective. 20177 | -3/Research | Spotted Striker 20210 | -3/Research | Lost 3 allies 20221 | -3/Research | Assimilating Conveyor 8c into Collective. 20259 | -3/Research | Assimilating Conveyor 8d into Collective. 20302 | -3/Research | Assimilating Conveyor 8e into Collective. 20363 | -3/Research | Spotted Striker 20372 | -3/Research | Allies destroyed Striker 20400 | -3/Research | Assimilating Rainmaker 8a into Collective. 20409 | -3/Research | Lost 3 allies 20502 | -3/Research | Found Exp. Signal Interpreter 20511 | -3/Research | Discovered exit to Research (range 13) 20535 | -3/Research | Assimilating Enforcer 8a into Collective. 20541 | -3/Research | Assimilating Veteran 8a into Collective. 20563 | -3/Research | Spotted Striker 20567 | -3/Research | Assimilating Striker into Collective. 20627 | -3/Research | Spotted Striker 20634 | -3/Research | Fabricated Cld. Nuclear Pulse Thruster (x1) 20644 | -3/Research | Spotted Striker 20733 | -3/Research | Spotted Striker 20737 | -3/Research | Spotted Striker 20744 | -3/Research | Allies destroyed Striker 20748 | -3/Research | Allies destroyed Striker 20775 | -3/Research | Entered Quarantine 20775 | -3/Quarantine | Accompanied by 6 allies 20777 | -3/Quarantine | Reached level 29 20785 | -3/Quarantine | Found Alien Artifact 20806 | -3/Quarantine | Scanned by Researcher 20812 | -3/Quarantine | Found Alien Artifact 20885 | -3/Quarantine | Found Alien Impact Weapon 20893 | -3/Quarantine | Unchained authorized (CL-0N3) 21239 | -3/Quarantine | R-10 Processor reconstituted as Combat Programmer 21239 | -3/Quarantine | Allies destroyed Combat Programmer 21239 | -3/Quarantine | Combat Programmer reconstituted as CL-0N3 21247 | -3/Quarantine | Allies destroyed CL-0N3 21248 | -3/Quarantine | Extracted schematics, analyses from CL-0N3's data core 21251 | -3/Quarantine | Found ID Mask 21277 | -3/Quarantine | Garrison activated, responded to threat 21304 | -3/Quarantine | Assimilating Warden 8a into Collective. 21313 | -3/Quarantine | Assimilating Conveyor 8f into Collective. 21329 | -3/Quarantine | Lost 5 allies 21349 | -3/Quarantine | Assimilating Analyst 8a into Collective. 21382 | -3/Quarantine | Assimilating Analyst 8b into Collective. 21396 | -3/Quarantine | Assimilating Electro 8a into Collective. 21420 | -3/Quarantine | Assimilating Conveyor 8g into Collective. 21438 | -3/Quarantine | Lost 4 allies 21461 | -3/Quarantine | Spotted Alpha 7 21480 | -3/Quarantine | Allies destroyed Alpha 7 21690 | -3/Quarantine | Identified Core Stripper 21690 | -3/Quarantine | Identified Hpw. Transdimensional Reconstructor 21690 | -3/Quarantine | Identified Dimensional Node Initializer 21793 | -3/Quarantine | Assimilating Analyst 8c into Collective. 21834 | -3/Quarantine | Assimilating Analyst 8d into Collective. 21870 | -3/Quarantine | Found Alien Artifact 21871 | -3/Quarantine | Identified Subatomic Replicator 21871 | -3/Quarantine | Used Subatomic Replicator to create Alien Artifact 21950 | -3/Quarantine | Reached level 30 21956 | -3/Quarantine | Upgraded with Weapon slot (x1) 22088 | -3/Quarantine | Spotted Fortress 22094 | -3/Quarantine | Destroyed Fortress 22097 | -3/Quarantine | Upgraded with Power slot (x1) 22098 | -3/Quarantine | Found Vortex Chain Reactor 22118 | -3/Quarantine | Found Thermal Barrier 22121 | -3/Quarantine | Found Exp. EM Shield 22253 | -3/Quarantine | Assimilating Engineer 8a into Collective. 22258 | -3/Quarantine | Assimilating Serf 8b into Collective. 22285 | -3/Quarantine | Assimilating Serf 8c into Collective. 22290 | -3/Quarantine | Assimilating Serf 8d into Collective. 22307 | -3/Quarantine | Assimilating Engineer 8b into Collective. 22313 | -3/Quarantine | Assimilating Engineer 8c into Collective. 22348 | -3/Quarantine | Assimilating Engineer 8d into Collective. 22355 | -3/Quarantine | Murdered 5 allies 22358 | -3/Quarantine | Assimilating Engineer 8e into Collective. 22393 | -3/Quarantine | Assimilating Serf 8e into Collective. 22399 | -3/Quarantine | Assimilating Serf 8f into Collective. 22529 | -3/Quarantine | Assimilating Engineer 8f into Collective. 22651 | -3/Quarantine | Assimilating Engineer 8g into Collective. 22668 | -3/Quarantine | Assimilating Engineer 8h into Collective. 22686 | -3/Quarantine | Assimilating Serf 8g into Collective. 22689 | -3/Quarantine | Assimilating Engineer 8i into Collective. 22941 | -3/Quarantine | Cryocooling Duct disabled 22956 | -3/Quarantine | Ambient heat levels rising (+20) 22956 | -3/Quarantine | Non-combat units ordered to evacuate 22966 | -3/Quarantine | Assimilating Engineer 8j into Collective. 23040 | -3/Quarantine | Identified exit to Section 7 23040 | -3/Quarantine | Discovered exit to Section 7 (range 6) 23040 | -3/Quarantine | Identified exit to Protoforge 23040 | -3/Quarantine | Discovered exit to Protoforge (range 6) 23128 | -3/Quarantine | Entered Protoforge 23128 | -3/Protoforge | Accompanied by 4 allies 23166 | -3/Protoforge | Superfortress began startup sequence 23172 | -3/Protoforge | Spotted Hotshot 23172 | -3/Protoforge | Spotted Hotshot 23176 | -3/Protoforge | Spotted B-86 Titan 23191 | -3/Protoforge | Allies destroyed B-86 Titan 23194 | -3/Protoforge | Assimilating Hotshot into Collective. 23197 | -3/Protoforge | Assimilating Hotshot into Collective. 23221 | -3/Protoforge | Lost 3 allies 23305 | -3/Protoforge | Discovered exit to Research (range 13) 23401 | -3/Protoforge | Spotted Hotshot 23401 | -3/Protoforge | Spotted Hotshot 23425 | -3/Protoforge | Destroyed Hotshot 23425 | -3/Protoforge | Allies destroyed Hotshot 23536 | -3/Protoforge | Assimilating Warden 8b into Collective. 23596 | -3/Protoforge | Spotted AP7-3 23597 | -3/Protoforge | Spotted AP7-3 23613 | -3/Protoforge | Destroyed AP7-3 23620 | -3/Protoforge | Destroyed AP7-3 23631 | -3/Protoforge | Spotted Hotshot 23631 | -3/Protoforge | Spotted Hotshot 23640 | -3/Protoforge | Destroyed Hotshot 23643 | -3/Protoforge | Destroyed Hotshot 23709 | -3/Protoforge | Spotted EXE-6 23709 | -3/Protoforge | Spotted EXE-6 23713 | -3/Protoforge | Destroyed EXE-6 23723 | -3/Protoforge | Destroyed EXE-6 23745 | -3/Protoforge | UFD initiated attack on Protoforge (Readiness: Low) 23745 | -3/Protoforge | Loaded intel: 3 recycling unit locations 23757 | -3/Protoforge | Initialized slip node 23777 | -3/Protoforge | Identified Supercharged TR 23777 | -3/Protoforge | Warped through subspace to slip node 23778 | -3/Protoforge | Core integrity fell below 50% 23781 | -3/Protoforge | Optimus attacked Superfortress 23781 | -3/Protoforge | Optimus greeted in Protoforge 23783 | -3/Protoforge | Spotted Decapitator 23786 | -3/Protoforge | Spotted Executioner 23793 | -3/Protoforge | Spotted Executioner 23794 | -3/Protoforge | Reached level 31 23816 | -3/Protoforge | Lost 13 allies 23840 | -3/Protoforge | Found Exp. Core Analyzer 23845 | -3/Protoforge | Spotted SKR-2 23861 | -3/Protoforge | Upgraded with Utility slot (x1) 23889 | -3/Protoforge | Met 7R-MNS 23912 | -3/Protoforge | Found Cep. Weapon Articulator 23914 | -3/Protoforge | Spotted Immortal 23914 | -3/Protoforge | Spotted Immortal 23925 | -3/Protoforge | Destroyed Immortal 23935 | -3/Protoforge | Assimilating Immortal into Collective. 23962 | -3/Protoforge | Found Exp. Jetlance 23963 | -3/Protoforge | Spotted Immortal 23963 | -3/Protoforge | Spotted Immortal 23971 | -3/Protoforge | Destroyed Immortal 23984 | -3/Protoforge | Destroyed Immortal 24019 | -3/Protoforge | UFD reported confirmed Drillbomb installation 24041 | -3/Protoforge | Found Exp. Melee Analysis Suite 24043 | -3/Protoforge | Found Exp. Melee Analysis Suite 24054 | -3/Protoforge | Found Cep. Antimissile System 24069 | -3/Protoforge | Found Exp. Jetlance 24078 | -3/Protoforge | Forge Plexus network access discovered 24087 | -3/Protoforge | Found Crosscalibrator 24089 | -3/Protoforge | UFD reported confirmed Drillbomb installation 24091 | -3/Protoforge | Spotted Striker 24091 | -3/Protoforge | Spotted Immortal 24091 | -3/Protoforge | Spotted Immortal 24096 | -3/Protoforge | Spotted Striker 24099 | -3/Protoforge | Spotted Decapitator 24099 | -3/Protoforge | Spotted Decapitator 24099 | -3/Protoforge | Spotted Decapitator 24099 | -3/Protoforge | Spotted Decapitator 24100 | -3/Protoforge | Destroyed Decapitator 24102 | -3/Protoforge | Destroyed Decapitator 24105 | -3/Protoforge | Destroyed Decapitator 24108 | -3/Protoforge | Destroyed Decapitator 24126 | -3/Protoforge | Found Exp. Terror Saw 24137 | -3/Protoforge | Found Exp. Terror Saw 24139 | -3/Protoforge | Found Exp. Terror Saw 24186 | -3/Protoforge | Found Cep. Lightning Penetrator 24201 | -3/Protoforge | Destroyed Immortal 24205 | -3/Protoforge | Destroyed Immortal 24211 | -3/Protoforge | Found Faulty Exp. Jetlance 24214 | -3/Protoforge | Found Exp. Jetlance 24218 | -3/Protoforge | Found Cep. Deflector Sword 24223 | -3/Protoforge | Found Cep. Disintegration Ray 24239 | -3/Protoforge | Found Faulty Cep. Phase Shift Module 24240 | -3/Protoforge | Found Faulty Cep. Phase Shift Module 24329 | -3/Protoforge | Spotted Decapitator 24329 | -3/Protoforge | Spotted Decapitator 24329 | -3/Protoforge | Spotted V690-k 24329 | -3/Protoforge | Spotted V627-g 24329 | -3/Protoforge | Spotted Decapitator 24352 | -3/Protoforge | Build established: Scavenger-Scout 24355 | -3/Protoforge | Destroyed V627-g 24377 | -3/Protoforge | Destroyed V690-k 24381 | -3/Protoforge | Found Corrupted Exp. Shield Generator 24395 | -3/Protoforge | Found Cep. Zero-point Core 24402 | -3/Protoforge | Found Faulty Cep. Zero-point Core 24407 | -3/Protoforge | Found Faulty Cep. Zero-point Core 24651 | -3/Protoforge | Spotted V722-a 24657 | -3/Protoforge | Spotted Decapitator 24657 | -3/Protoforge | Spotted Decapitator 24666 | -3/Protoforge | Spotted Immortal 24666 | -3/Protoforge | Spotted Immortal 24709 | -3/Protoforge | Destroyed Immortal 24713 | -3/Protoforge | Destroyed Immortal 24746 | -3/Protoforge | Found Cep. Fieldthrust Drive 24747 | -3/Protoforge | Found Faulty Cep. Fieldthrust Drive 24846 | -3/Protoforge | Destroyed AP7-3 24848 | -3/Protoforge | Destroyed AP7-3 24866 | -3/Protoforge | Found Cep. Core Analysis Suite 24868 | -3/Protoforge | Found Cep. Cloak Mesh 24872 | -3/Protoforge | Found Faulty Cep. Cloak Mesh 24881 | -3/Protoforge | Found Cep. Thermoelectric Network 24893 | -3/Protoforge | Found Femtoactuators 24897 | -3/Protoforge | Found Cep. Melee Reflex Suite 24920 | -3/Protoforge | Spotted V935-y 24920 | -3/Protoforge | Spotted V670-t 24920 | -3/Protoforge | Spotted V177-m 24944 | -3/Protoforge | Found Cep. NT7 Matterbank 24955 | -3/Protoforge | Spotted V506-l 24955 | -3/Protoforge | Spotted V324-k 24955 | -3/Protoforge | Spotted V246-d 24955 | -3/Protoforge | Spotted V393-e 24991 | -3/Protoforge | Found Cep. Plasma Driver 25051 | -3/Protoforge | Spotted Striker 25075 | -3/Protoforge | Entered Research 25077 | -2/Research | Reached level 32 25142 | -2/Research | Identified exit to Testing 25142 | -2/Research | Discovered exit to Testing (range 22) 25162 | -2/Research | Spotted B-90 Cyclops 25273 | -2/Research | Build established: Hacker-Ninja 27339 | -2/Research | Entered Testing 27366 | -2/Testing | Spotted Striker 27412 | -2/Testing | Spotted Alpha 7 27416 | -2/Testing | Rewired 8O-KPA(L) 27417 | -2/Testing | Rewired R8-H01(L) 27420 | -2/Testing | Rewired JU-WQE(L) 27424 | -2/Testing | Destroyed Alpha 7 27523 | -2/Testing | Found Prototype Energy Gun 27523 | -2/Testing | Identified Warp Gun 27564 | -2/Testing | Reached level 33 27578 | -2/Testing | Upgraded with Utility slot (x1) 27581 | -2/Testing | Identified exit to Access 27581 | -2/Testing | Discovered exit to Access (range 8) 27589 | -2/Testing | First assault squad dispatched 27594 | -2/Testing | Found Prototype Ballistic Gun 27594 | -2/Testing | Identified Hyp. Multirail 27598 | -2/Testing | Destroyed 10 combat bots 27610 | -2/Testing | Protovariant out of control (PL-CQY1X8PG9M) 27610 | -2/Testing | Unleashed a protovariant (PL-CQY1X8PG9M) 27681 | -2/Testing | Entered Access 27681 | -1/Access | Accompanied by 3 allies 27689 | -1/Access | Identified exit to Command 27689 | -1/Access | Identified exit to Surface 27733 | -1/Access | Spotted B-99 Colossus 27752 | -1/Access | Destroyed B-99 Colossus 27753 | -1/Access | Lost 3 allies 27754 | -1/Access | Spotted B-99 Colossus 27783 | -1/Access | Destroyed B-99 Colossus 27863 | -1/Access | Reached level 34 27944 | -1/Access | Found Exp. Melee Analysis Suite 29247 | -1/Access | Found Prototype Device 29247 | -1/Access | Identified Exp. Actuator Array 29678 | *** | Escaped! Last Messages --------------- 29180_ Q473-e destroyed. 29180_ Exp. Jetlance follow-up attack on Q507-g. 29180_ Q507-g suffers critical hit (Impale). 29181_ NOTICE: Protoforge disruption unresolved, advanced fortification protocols active. 29181_ Q507-g follow-up attacks with Gravity Flail. 29182_ Q507-g suffers critical hit (Impale). 29182_ Vibroblade follow-up attack on Q507-g. 29185_ Q507-g suffers critical hit (Impale). 29185_ Q507-g destroyed. 29246_ Dropped Cep. Cloak Mesh. 29247_ Acquired Prototype Device. 29247_ Identified Exp. Actuator Array. 29249_ Acquired 10 matter. 29251_ Acquired Enh. Force Lance. 29253_ Dropped Enh. Force Lance. 29253_ Acquired 10 matter. 29631_ ALERT: Potential suspicious activity detected, Q-Series report to Access Zone 1H. Map ----- +----------------------------------------------------+ | # """""" #??# # #??? #????????? | | # "" ##?# + #??? * #????????? | | # "" #??# # #?? #????????? | | # #### # #?? #????????? | | # #### k ?# #? #????????? | | # #??# ?# #? #????????? | | # ##?# ??# # #????????? | | # ##?# ???# # #????????? | | # ############+#??## + #????????? | | #####+######+## ## ##??# # = #????????? | | + ## #???# g# #????????? | | # ##%##### ########????????? | | # / =!=!= #????????? | | #! " # k!* =%!* #????????? | | ### ######## """ ############### #????????? | | ### ##?#???# """ #????#???#???????o????????? | | # #?#????#* " #?????????????????????????? | | # ###??############???#?????????????????????? | | # #?##????#??##?#??#????????????????????????? | | # #???????##??##??#????????#????# ## #??# | | %+% ###########??##########"????### ## #??# | | # ### "??"!%!/! " ??? ## #??# | | % # " # "??"%!/!%! "???? ## #??# | | ### % ###% """"!"!"""" "???? ## #### | | t % "??"!"!!/ "??"???? ## + + | | ! "??" " "@ "??????? ## # ## | | % % =%=!"??" "!"" "??"???? ## # ## | | =!=*!"??" " "? "???? ## # ## | | ###"+##### !%%*%""""%"""""" "???? ####### ## | | # !!!=R["%"!=|! "????""" #?????# | | #!/%=!!!!"!"! "????""" #?????# | | #####################"????### #?????# | | #???#????????#??????????????# #?????# ## | | #??#???????##?#???????????### #######+## | | #?????????#??#???????????? # # | | #??###???????????????????? # # | | "" #????????????????????????? + + | | "" #??#?#???##??????????????? # # | | """""" #???????#????????????????? # # ""T"" | | """"""u #?#??#??#????????????????? #A # """"" | | "" #????????????????????????? # # | | "" #????????????????????????? # # | | ? ? #??#?????????????????????? # ########## | | ???? #?????????????????????????### #????????? | | ?????#####???#???????????????????????????????????? | | ?????????????????????????????????????????????????? | | ????????????s?s??????????????????????????????????? | | ????????????s????????????????????????????????????? | | ???????????s?s???????????????????????????????????? | | ?????????????????????????????????????????????????? | +----------------------------------------------------+ Best States ------------- Heat Dissipation 85 Energy Generation 81 Energy Capacity 1650 Matter Stores 950 Matter Capacity 950 Sight Range 18 Robot Scan Range 26 Terrain Scan Range 24 Terrain Scan Density 310 Cloak Strength 9 Additional Mass Support 16 Corruption Block 15 Armor Coverage 800 Resistance: KI 35 Resistance: TH 85 Resistance: EX 35 Resistance: EM 100 Resistance: I 35 Resistance: S 35 Resistance: P 35 Weapon Shielding 33 Point Defense Rating 480 Projectile Deflection 15 Melee Speed Boost 50 Phase Shifting 25 Evasion (%) 107 Targeting Accuracy 30 Melee Accuracy 12 Core Analysis 11 Recoil Reduction 2 Offensive Hacking 54 Defensive Hacking 10 Authchip Count 1 Item Schematics ----------------- Hcp. Matter Pod | -10/Materials | Hacked Datajack | -10/Materials | Hacked Core Analyzer | -9/Recycling | Hacked Arm. Wheel | -9/Recycling | Hacked Mak. Light Armor Plating | -9/Scraptown | Extrapolated Mak. Leg | -9/Scraptown | Extrapolated Spk. Treads | -9/Scraptown | Extrapolated Mak. Coolant Network | -9/Scraptown | Extrapolated Spk. Medium Treads | -9/Scraptown | Extrapolated Deep Structural Scanner | -9/Scraptown | Extrapolated 0b10 Decoder Chip [Skirmisher] | -9/Scraptown | Extrapolated Tactical Coordination Suite | -9/Scraptown | Extrapolated Mak. Kinetic Plating | -9/Scraptown | Extrapolated Mak. Targeting Computer | -9/Scraptown | Extrapolated Mak. Laser | -9/Scraptown | Extrapolated Barrage Gun | -9/Scraptown | Extrapolated Hvy. Battle Rifle | -9/Scraptown | Extrapolated Slug Cannon | -9/Scraptown | Extrapolated Mak. Power Shielding | -9/Scraptown | Extrapolated Machine Rigger | -9/Scraptown | Extrapolated Hvy. Beamcaster | -6/Factory | Extrapolated Energy Deflector | -6/Factory | Extrapolated Matter Compressor | -6/Factory | Hacked Mak. Flight Unit | -6/Factory | Extrapolated Mak. Terrain Scan Processor | -6/Lower Caves | Extrapolated Beamcaster | -6/Lower Caves | Extrapolated 0b10 Decoder Chip [Generic] | -6/Lower Caves | Extrapolated 0b10 Decoder Chip [Scout] | -6/Lower Caves | Extrapolated Mak. Medium Armor Plating | -6/Lower Caves | Extrapolated Mak. Ablative Armor | -6/Lower Caves | Extrapolated Plasma Flamer | -6/Lower Caves | Extrapolated Mak. Heavy Armor Plating | -6/Zion | Extrapolated Mak. Thermal Plating | -6/Zion | Extrapolated Mak. Core Shielding | -6/Zion | Extrapolated Mak. Power Source | -6/Zion | Extrapolated Active Sensor Spoofer | -6/Zion | Extrapolated Mak. Hacking Suite | -6/Zion | Extrapolated Mak. System Shield | -6/Zion | Extrapolated Arc Thrower | -6/Zion | Extrapolated Enh. Flamer | -6/Zion | Extrapolated Fire Trap | -6/Zion | Extrapolated Mak. Weapon Shielding | -6/Deep Caves | Extrapolated Mak. Terrain Scanner | -6/Deep Caves | Extrapolated Mak. Trap Scanner | -5/Factory | Extrapolated Mak. Transmission Jammer | -5/Factory | Extrapolated Bore Cannon | -4/Factory | Extrapolated Cmb. Linear Gravjet | -4/Extension | Hacked Q-thruster | -4/Hub_04(d) | Hacked Cld. Nuclear Pulse Thruster | -4/Hub_04(d) | Hacked Coolant Network | -3/Quarantine | Archive Exp. Myomer Leg | -3/Quarantine | Archive Hvy. Neutron Cannon | -3/Quarantine | Archive Hvy. Dispersion Rifle | -3/Quarantine | Archive Hvy. Antimatter Reactor | -3/Quarantine | Archive Prc. Energy Filter | -3/Quarantine | Archive Exp. Shield Generator | -3/Quarantine | Archive Exp. Matter Compressor | -3/Quarantine | Hacked Enh. Multireflex Exoskeleton | -3/Quarantine | Archive Exp. Hacking Suite | -3/Quarantine | Archive Exp. Energy Well | -3/Quarantine | Archive Cld. Phase Gun | -3/Quarantine | Archive Electron Diverter | -3/Quarantine | Archive Diametric Drive | -3/Quarantine | Archive Prc. Phase Gun | -3/Quarantine | Archive Exp. Cooling System | -3/Quarantine | Archive Imp. Diametric Drive | -3/Quarantine | Archive Nanosword | -3/Protoforge | Archive Hvy. Tesla Rifle | -3/Protoforge | Archive Thunder Hammer | -3/Protoforge | Archive Lgt. Antimatter Cannon | -3/Protoforge | Archive Cld. Fission Core | -3/Protoforge | Archive Exp. Heat Sink | -3/Protoforge | Archive Adv. Gravity Neutralizer | -3/Protoforge | Archive Com. Particle Reactor | -3/Protoforge | Archive Adv. Myomer Leg | -3/Protoforge | Archive Imp. KE Penetrator | -3/Protoforge | Archive Exp. Coolant Injector | -3/Protoforge | Archive Imp. Lightning Gun | -2/Testing | Archive Exp. Reaction Control System | -2/Testing | Archive Com. Mass Driver | -2/Testing | Archive Gui. Micro-nuke Launcher | -2/Testing | Archive Imp. Quantum Reactor | -2/Testing | Archive Cld. Proton Cannon | -2/Testing | Archive Particle Accelerator | -2/Testing | Archive Cld. Antimatter Reactor | -2/Testing | Archive Exp. Focal Shield | -2/Testing | Archive Exp. Biometal Heavy Treads | -2/Testing | Archive Plasma Lance | -2/Testing | Archive Hellfire Missile Launcher | -2/Testing | Archive Enh. Biometal Leg | -2/Testing | Archive Robot Schematics ------------------ O-32 Director | -3/Quarantine | Hacked K-01 Serf | -3/Quarantine | Archive T-07 Excavator | -3/Quarantine | Archive A-02 Transporter | -3/Quarantine | Archive A-15 Conveyor | -3/Quarantine | Archive R-06 Scavenger | -3/Quarantine | Archive R-10 Processor | -3/Quarantine | Archive M-14 Sweeper | -3/Quarantine | Archive M-22 Extractor | -3/Quarantine | Archive M-30 Cleanser | -3/Quarantine | Archive M-13 Machinist | -3/Quarantine | Archive M-28 Smith | -3/Quarantine | Archive M-36 Artificer | -3/Quarantine | Archive O-16 Technician | -3/Quarantine | Archive O-24 Administrator | -3/Quarantine | Archive W-16 Scout | -3/Quarantine | Archive W-25 Informer | -3/Quarantine | Archive W-44 Eye | -3/Quarantine | Archive S-10 Pest | -3/Quarantine | Archive S-27 Virus | -3/Quarantine | Archive S-43 Plague | -3/Quarantine | Archive G-34 Mercenary | -3/Quarantine | Archive G-47 Trooper | -3/Quarantine | Archive G-50 Soldier | -3/Quarantine | Archive G-67 Veteran | -3/Quarantine | Archive G-73 Enforcer | -3/Quarantine | Archive B-36 Bruiser | -3/Quarantine | Archive B-48 Gladiator | -3/Quarantine | Archive B-60 Warrior | -3/Quarantine | Archive B-74 Champion | -3/Quarantine | Archive L-31 Rogue | -3/Quarantine | Archive L-41 Fighter | -3/Quarantine | Archive L-61 Swordsman | -3/Quarantine | Archive Y-45 Defender | -3/Quarantine | Archive Y-54 Guardian | -3/Quarantine | Archive Y-64 Sentinel | -3/Quarantine | Archive Y-72 Warden | -3/Quarantine | Archive D-53 Grenadier | -3/Quarantine | Archive D-63 Destroyer | -3/Quarantine | Archive D-83 Annihilator | -3/Quarantine | Archive X-57 Shotgunner | -3/Quarantine | Archive X-62 Marksman | -3/Quarantine | Archive X-67 Chaingunner | -3/Quarantine | Archive X-72 Disruptor | -3/Quarantine | Archive X-77 Beamer | -3/Quarantine | Archive X-82 Rainmaker | -3/Quarantine | Archive X-87 Electro | -3/Quarantine | Archive H-55 Commando | -3/Quarantine | Archive H-66 Slayer | -3/Quarantine | Archive H-77 Assassin | -3/Quarantine | Archive H-88 Terminator | -3/Quarantine | Archive P-60 Hacker | -3/Quarantine | Archive P-70 Sage | -3/Quarantine | Archive P-80 Master | -3/Quarantine | Archive Fabricated ------------ Tactical Coordination Suite | x1 | -6/Factory | Authchip Hcp. Matter Pod | x2 | -6/Factory H-66 Slayer | x2 | -5/Factory | Preloaded Mak. Flight Unit | x2 | -5/Factory Mak. Flight Unit | x2 | -5/Factory Mak. Flight Unit | x2 | -5/Factory Mak. Flight Unit | x2 | -5/Factory Datajack | x2 | -4/Factory Q-thruster | x2 | -3/Research Cld. Nuclear Pulse Thruster | x1 | -3/Research Repaired ---------- Nothing Studied --------- Impulse Thruster Array | -3/Quarantine | Hacked Q-thruster | -3/Quarantine | Hacked Alien Tech Used ----------------- Subatomic Replicator Core Stripper Dimensional Node Initializer Supercharged TR Achievements -------------- We Are The Borg Challenges ------------ None RPGLIKE | -11 -10 -10 -10 -9 -9 -6 -6 -6 -6 -6 -5 -5 -4 -4 -4 -4 -4 -3 -3 -3 -2 -2 -1 --------- Run | Yrd Mat Min Sub Rec Scr Fac Low Low Zio Dee Pro Fac Fac Ext Cet Arc Hub Res Qua Frg Res Tes Acc Levels Raised 33 | . 1 1 2 2 1 5 1 1 . 2 1 2 3 1 1 . 1 2 2 1 1 1 1 XP Earned 56135 | 6000 2550 1753 1853 3535 900 8221 1796 1156 650 1602 1712 3544 3760 2346 927 370 1162 3968 1993 2533 846 1028 1930 XP Spent 53550 | 5250 . 1600 3600 3425 1100 8900 1605 . . 3035 975 4100 5400 . 2800 . 1430 2930 2500 2300 . 2600 . Upgrades 85 | 8 . 2 3 15 1 8 4 . . 16 3 5 3 . 6 . 4 3 2 1 . 1 . Power Slot 1 | . . . . . . . . . . . . . . . . . . . 1 . . . . Propulsion Slot 7 | 1 . 1 1 . . . . . . . . 2 2 . . . . . . . . . . Utility Slot 8 | 1 . . . 1 1 3 . . . . . . . . . . . . . 1 . 1 . Weapon Slot 6 | 1 . 1 2 . . 1 . . . . . . . . . . . . 1 . . . . Core Integrity 8 | . . . . . . . 3 . . 5 . . . . . . . . . . . . . Heat Dissipation 10 | . . . . . . . . . . 4 . . . . 3 . 3 . . . . . . Energy Generation 4 | . . . . . . . . . . . . 1 . . 1 . 1 1 . . . . . Matter Storage 1 | . . . . . . . . . . . . . . . 1 . . . . . . . . Mass Support 4 | . . . . . . . . . . . . 2 1 . 1 . . . . . . . . Inventory Capacity 7 | 5 . . . . . . 1 . . . . . . . . . . 1 . . . . . Sight Range 2 | . . . . 2 . . . . . . . . . . . . . . . . . . . Sensor Range 13 | . . . . 10 . . . . . . 3 . . . . . . . . . . . . Terrain Scan Density 3 | . . . . . . . . . . 2 . . . . . . . 1 . . . . . Ranged Accuracy 1 | . . . . . . . . . . 1 . . . . . . . . . . . . . Hack Attack % 4 | . . . . 2 . 2 . . . . . . . . . . . . . . . . . Hack Defense % 2 | . . . . . . 2 . . . . . . . . . . . . . . . . . TH Resistance % 4 | . . . . . . . . . . 4 . . . . . . . . . . . . . Protomatter Created 1931 | . 313 81 . 41 . . . . 59 . . 81 19 . . . 69 . 162 561 68 172 305 Integrity Restored 8463 | . 446 128 315 195 . 957 22 37 . 216 359 156 335 174 . 261 211 668 1043 2341 183 152 264 Core 6171 | . 292 83 250 124 . 809 12 24 . 136 194 93 248 61 . 261 163 606 818 1530 142 118 207 Parts 2292 | . 154 45 65 71 . 148 10 13 . 80 165 63 87 113 . . 48 62 225 811 41 34 57 Protomatter Decayed 13142 | . 16 17 257 30 . 189 226 125 59 118 . 184 301 728 . . 156 3788 167 6587 5 152 37 Game ------ Seed CentriumSystemCompressor Manual? 0 Play Time 05:49:57 Cumulative 1650.8 hours Start 2026.06.23 @ 18:00:43 End 2026.06.24 @ 11:25:52 Sessions 7 Manual Loads 0 Difficulty Explorer Special Mode Winter2019/RPGLIKE Game No. 510 Rogue 502 Adventurer 4 Explorer 4 Win Type 0 Total 63 Types 30/8/3/4/1/4/6/2/3/2 Lore% 98 Gallery% 96 Achievement% 91 Wizard Run 0 Options --------- Layout 2 ASCII 0 Keyboard 0 Movement Numpad Keybinds 0 Fullscreen 2 Font 24/Smallcaps Map View 50x44 Zoom Use 0% Tactical HUD 1 Map Filters NONE Filters NONE Steam 1 RUN: 4c112b7e-fb59-456e-b376-e09a1074f996